Workbook

Sheet AMB
A1: Roane County Government - INLAND MARINE
A2: Department: AMBULANCE
A3: Tag # | B3: Item | C3: Location | D3: Brand/Model | E3: Serial # | F3: Qty | G3: PO # | H3: Cost
B4: STAIR CHAIR | C4: 55828 | D4: STAIR PRO | E4: 41139254 | F4: 1 | H4: $3,100.00
B5: STAIR CHAIR | C5: 19533 | D5: STAIR PRO | E5: 41139256 | F5: 1 | H5: $3,100.00
B6: STAIR CHAIR | C6: 8726 | D6: STAIR PRO | E6: 41139257 | F6: 1 | H6: $3,100.00
B7: STAIR CHAIR | C7: 38793 | D7: STAIR PRO | E7: 41139258 | F7: 1 | H7: $3,100.00
B8: STAIR CHAIR | C8: STATION 1 | D8: STAIR PRO | E8: 41139259 | F8: 1 | H8: $3,100.00
B9: STAIR CHAIR | C9: 55832 | D9: STAIR PRO | E9: 41139260 | F9: 1 | H9: $3,100.00
B10: STAIR CHAIR | C10: 3470 | D10: STAIR PRO | E10: 41139261 | F10: 1 | H10: $3,100.00
B11: STAIR CHAIR | C11: HFD | D11: STAIR PRO | E11: 41139262 | F11: 1 | H11: $3,100.00
G12: TOTAL: | H12: =SUM(H4:H11) -> $24,800.00
B14: BASE CHARGERS | C14: CAGE STA 1 | D14: ZOLL | E14: H05122280 | F14: 1 | H14: $3,500.00
B15: BASE CHARGERS | C15: STATION 1 | D15: ZOLL | E15: H05H22150 | F15: 1 | H15: $3,500.00
B16: BASE CHARGERS | D16: ZOLL | E16: H05H22156 | F16: 1 | H16: $3,500.00
B17: BASE CHARGERS | D17: ZOLL | E17: H05H22141 | F17: 1 | H17: $3,500.00
A18: 7391 | B18: BASE CHARGERS | D18: ZOLL | E18: H04K20668 | F18: 1 | H18: $3,500.00
A19: 7393 | B19: BASE CHARGERS | D19: ZOLL | E19: AC08E002522 | F19: 1 | H19: $3,500.00
A20: 7403 | B20: BASE CHARGERS | D20: ZOLL | E20: H04A18433 | F20: 1 | H20: $3,500.00
G21: TOTAL: | H21: =SUM(H14:H20) -> $24,500.00
A23: 7382 | B23: DEFILBRILLATORS | C23: 8726 | D23: ZOLL | E23: AR12F001315 | F23: 1 | H23: $36,000.00
A24: 7384 | B24: DEFILBRILLATORS | C24: STATION 1 | D24: ZOLL | E24: AB07L006104 | F24: 1 | H24: $35,000.00
A25: 5751 | B25: DEFILBRILLATORS | C25: 19533 | D25: ZOLL | E25: ABO7L006102 | F25: 1 | H25: $35,000.00
A26: 5808 | B26: DEFILBRILLATORS | C26: 55828 | D26: ZOLL | E26: AB07L006103 | F26: 1 | H26: $35,000.00
A27: 5087 | B27: DEFILBRILLATORS | D27: ZOLL | E27: AB07L006105 | F27: 1 | H27: $35,000.00
A28: 7383 | B28: DEFILBRILLATORS | C28: 38793 | D28: ZOLL | E28: AB07L006101 | F28: 1 | H28: $35,000.00
A29: 7385 | B29: DEFILBRILLATORS | D29: ZOLL | E29: AB07L006109 | F29: 1 | H29: $35,000.00
G30: TOTAL: | H30: =SUM(H23:H29) -> $246,000.00
A32: 5752 | B32: VENTILATORS | C32: 55828 | D32: SMITH MEDICAL | E32: 511341 | F32: 1 | H32: $5,100.00
A33: 5809 | B33: VENTILATORS | C33: 3470 | D33: SMITH MEDICAL | E33: 511312 | F33: 1 | H33: $5,100.00
A34: 5795 | B34: VENTILATORS | C34: 55828 | D34: SMITH MEDICAL | E34: 511313 | F34: 1 | H34: $5,100.00
A35: 5796 | B35: VENTILATORS | C35: 19533 | D35: SMITH MEDICAL | E35: 511339 | F35: 1 | H35: $5,100.00
B36: VENTILATORS | C36: ROANE MED | D36: ALLIED HEALTHCARE | E36: 20150206003 | F36: 1 | H36: $5,100.00
B37: VENTILATORS | C37: 8726 | D37: SMITH MEDICAL | E37: 511311 | F37: 1 | H37: $5,100.00
G38: TOTAL: | H38: =SUM(H32:H37) -> $30,600.00
A40: 7523 | B40: POWERCOT | D40: STRYKER | E40: 131139466 | H40: $16,000.00
A41: 5806 | B41: POWERCOT | C41: 38793 | D41: STRYKER | E41: 131039295 | F41: 1 | H41: $16,000.00
A42: 7386 | B42: POWERCOT | C42: 55368 | D42: STRYKER | E42: 121039526 | F42: 1 | H42: $12,000.00
A43: 7523 | B43: POWERCOT | C43: 55828 | D43: STRYKER | E43: 131139466 | F43: 1 | H43: $16,000.00
B44: POWERCOT | C44: 3470 | D44: STRYKER | E44: 141140574 | F44: 1 | H44: $16,000.00
B45: POWERCOT | D45: STRYKER | E45: 2012003500545 | F45: 1 | H45: $19,000.00
B46: POWERCOT | C46: 8726 | D46: STRYKER | E46: 131241640 | F46: 1 | H46: $16,000.00
G47: TOTAL: | H47: =SUM(H40:H47) -> $127,000.00
A51: Roane County Government - INLAND MARINE
A52: Department: AMBULANCE
A53: Tag # | B53: Item | C53: Location | D53: Brand/Model | E53: Serial # | F53: Qty | G53: PO # | H53: Cost
B54: PORTABLE RADIO M-2 | D54: MOTOROLA XLT1500 | E54: 687CKT1739 | H54: $1,800.00
B55: PORTABLE RADIO M-3 | C55: STA 2 | D55: MOTOROLA XLT1500 | E55: 687CKT1747 | H55: $1,800.00
B56: PORTABLE RADIO M-3 | C56: STA 4 | D56: MOTOROLA XLT1500 | E56: 687CKT1741 | H56: $1,800.00
B57: PORTABLE RADIO | C57: STATION 1 | D57: MOTOROLA XLT1500 | E57: 687CKT1746 | F57: 1 | H57: $1,800.00
B58: PORTABLE RADIO | C58: STA 4 | D58: MOTOROLA XLT1500 | E58: 687CKT1748 | F58: 1 | H58: $1,800.00
B59: PORTABLE RADIO M-4 | C59: STA 1 | D59: MOTOROLA XLT1500 | E59: 687CKT1740 | F59: 1 | H59: $1,800.00
B60: PORTABLE RADIO M-4 | C60: METRO COMM | E60: 687CKT1743 | F60: 1 | H60: $1,800.00
B61: PORTABLE RADIO M-1 | D61: KENWOOD NX 5400 | E61: B7310158 | H61: $4,900.00
B62: PORTABLE RADIO M-1 | D62: KENWOOD NX 5400 | E62: B7310157 | H62: $4,900.00
B63: PORTABLE RADIO | C63: TIM | D63: MOTOROLA XLT1500 | E63: 687CNV2141 | H63: $1,800.00
B65: TRIUMPH MOBILE HOME 2018 | C65: ROCKWOOD | D65: CWP038252TN | F65: 1 | H65: $50,696.00
G66: TOTAL: | H66: =SUM(H54:H65) -> $74,896.00
B69: BASE CHARGERS | D69: ZOLL | E69: H05I22280 | H69: $3,500.00
B70: BASE CHARGERS | D70: ZOLL | E70: H05H22150 | H70: $3,500.00
B71: BASE CHARGERS | D71: ZOLL | E71: H05H22156 | H71: $3,500.00
B72: BASE CHARGERS | D72: ZOLL | E72: H05H22141 | H72: $3,500.00
A73: 7391 | B73: BASE CHARGERS | D73: ZOLL | E73: H04K20668 | H73: $3,500.00
A74: 7393 | B74: BASE CHARGERS | D74: ZOLL | E74: AC08E002522 | H74: $3,500.00
A75: 7403 | B75: BASE CHARGERS | D75: ZOLL | E75: H04A18433 | H75: $3,500.00
G76: TOTAL: | H76: =SUM(H69:H75) -> $24,500.00
A79: 5752 | B79: VENTILATORS | C79: EMS HQ | D79: SMITH MEDICAL | E79: 511341 | H79: $5,100.00
A80: 5809 | B80: VENTILATORS | C80: EMS HQ | D80: SMITH MEDICAL | E80: 511312 | H80: $5,100.00
A81: 5795 | B81: VENTILATORS | C81: EMS HQ | D81: SMITH MEDICAL | E81: 511313 | H81: $5,100.00
A82: 5796 | B82: VENTILATORS | C82: EMS HQ | D82: SMITH MEDICAL | E82: 511339 | H82: $5,100.00
G83: TOTAL: | H83: =SUM(H79:H82) -> $20,400.00
B85: VACUUM SPLINTS | C85: EMS HQ | D85: HARTWELL MEDICAL | H85: $495.00
B86: VACUUM SPLINTS | C86: EMS HQ | D86: HARTWELL MEDICAL | H86: $495.00
B87: VACUUM SPLINTS | C87: EMS HQ | D87: HARTWELL MEDICAL | H87: $495.00
B88: VACUUM SPLINTS | C88: EMS HQ | D88: HARTWELL MEDICAL | H88: $495.00
B89: VACUUM SPLINTS | C89: EMS HQ | D89: HARTWELL MEDICAL | H89: $495.00
B90: VACUUM SPLINTS | C90: EMS HQ | D90: HARTWELL MEDICAL | H90: $495.00
B91: VACUUM SPLINTS | C91: EMS HQ | D91: HARTWELL MEDICAL | H91: $495.00
B92: VACUUM SPLINTS | C92: EMS HQ | D92: HARTWELL MEDICAL | H92: $495.00
G93: TOTAL: | H93: =SUM(H85:H92) -> $3,960.00
B96: TRACTION SPLINTS | C96: EMS HQ | D96: IRON DUCK | H96: $420.00
B97: TRACTION SPLINTS | C97: EMS HQ | D97: IRON DUCK | H97: $420.00
B98: TRACTION SPLINTS | C98: EMS HQ | D98: IRON DUCK | H98: $420.00
B99: TRACTION SPLINTS | C99: EMS HQ | D99: IRON DUCK | H99: $420.00
B100: TRACTION SPLINTS | C100: EMS HQ | D100: IRON DUCK | H100: $420.00
B101: TRACTION SPLINTS | C101: EMS HQ | D101: IRON DUCK | H101: $420.00
B102: TRACTION SPLINTS | C102: EMS HQ | D102: IRON DUCK | H102: $420.00
B103: TRACTION SPLINTS | C103: EMS HQ | D103: IRON DUCK | H103: $420.00
B104: TRACTION SPLINTS | C104: EMS HQ | D104: IRON DUCK | H104: $420.00
B105: TRACTION SPLINTS | C105: EMS HQ | D105: IRON DUCK | H105: $420.00
B106: TRACTION SPLINTS | C106: EMS HQ | D106: IRON DUCK | H106: $420.00
B107: TRACTION SPLINTS | C107: EMS HQ | D107: IRON DUCK | H107: $420.00
B108: TRACTION SPLINTS | C108: EMS HQ | D108: IRON DUCK | H108: $420.00
B109: TRACTION SPLINTS | C109: EMS HQ | D109: IRON DUCK | H109: $420.00
B110: TRACTION SPLINTS | C110: EMS HQ | D110: IRON DUCK | H110: $420.00
B111: TRACTION SPLINTS | C111: EMS HQ | D111: IRON DUCK | H111: $420.00
G112: TOTAL: | H112: =SUM(H96:H111) -> $6,720.00
A116: 5801 | B116: STRETCHER | D116: STRYKER | E116: 60139040 | H116: $5,100.00
A117: 5802 | B117: STRETCHER | D117: STRYKER | E117: 60139039 | H117: $5,100.00
A118: 4495 | B118: STRETCHER | D118: STRYKER | E118: 40940102 | H118: $5,100.00
A119: 4496 | B119: STRETCHER | D119: STRYKER | E119: 40940106 | H119: $5,100.00
A120: 4497 | B120: STRETCHER | D120: STRYKER | E120: 40940107 | H120: $5,100.00
A121: 4498 | B121: STRETCHER | D121: STRYKER | E121: 40940101 | H121: $5,100.00
A122: 4499 | B122: STRETCHER | D122: STRYKER | E122: 40940105 | H122: $5,100.00
A123: 4500 | B123: STRETCHER | D123: STRYKER | E123: 40940103 | H123: $5,100.00
A124: 4501 | B124: STRETCHER | D124: STRYKER | E124: 40940104 | H124: $5,100.00
G125: TOTAL: | H125: =SUM(H116:H124) -> $45,900.00
B127: PORTABLE RADIO | D127: MOTOROLA XTS1500 | E127: 687CKT1725 | H127: $1,800.00
B128: PORTABLE RADIO | D128: MOTOROLA XLT1500 | E128: 687CKT1739 | H128: $1,800.00
B129: PORTABLE RADIO | D129: MOTOROLA XTS2500 | E129: 205CJH1363 | H129: $2,800.00
B130: PORTABLE RADIO | D130: MOTOROLA XTS2500 M2 | E130: 205CJR2203 | H130: $2,800.00
B131: PORTABLE RADIO | D131: MOTOROLA XLT1500 | E131: 687CKT1747 | H131: $1,800.00
B132: PORTABLE RADIO | D132: MOTOROLA XTS1500 | E132: 687CNV2137 | H132: $1,800.00
B133: PORTABLE RADIO | D133: MOTOROLA XLT1500 | E133: 687CKT1741 | H133: $1,800.00
B134: PORTABLE RADIO | D134: MOTOROLA XLT1500 | E134: 687CKT1742 | H134: $1,800.00
B135: PORTABLE RADIO | D135: MOTOROLA XLT1500 | E135: 687CKT1743 | H135: $1,800.00
B136: PORTABLE RADIO | D136: MOTOROLA XLT1500 | E136: 687CKT1744 | H136: $1,800.00
B137: PORTABLE RADIO | D137: MOTOROLA XLT1500 | E137: 687CKT1746 | H137: $1,800.00
B138: PORTABLE RADIO | D138: MOTOROLA XLT1500 | E138: 687CKT1748 | H138: $1,800.00
B139: PORTABLE RADIO M-4 | C139: STA 1 | D139: MOTOROLA XLT1500 | E139: 687CKT1740 | F139: 1 | H139: $1,800.00
B140: PORTABLE RADIO M-4 | C140: METRO COMM | E140: 687CKT1743 | F140: 1 | H140: $1,800.00
B141: PORTABLE RADIO M-1 | D141: KENWOOD NX 5400 | E141: B7310158 | H141: $4,900.00
B142: PORTABLE RADIO M-1 | D142: KENWOOD NX 5400 | E142: B7310157 | H142: $4,900.00
B143: PORTABLE RADIO | C143: TIM | D143: MOTOROLA XLT1500 | E143: 687CNV2141 | H143: $1,800.00
G145: TOTAL: | H145: =SUM(H127:H144) -> $38,800.00
H146: =SUM(H145,H125,H112,H93,H83,H76,H66,H47,H38,H30,H21,H12) -> $0.00
G147: TOTAL: | H147: $526,460.00

Sheet Elections
A1: Roane County Government - Inland Marine
A2: Department: Election Commission
A3: Tag # | B3: Item | C3: Location | D3: Vendor | E3: Brand/Model | F3: Model | G3: Serial # | H3: Qty | I3: PO # | J3: Yr Purch | K3: Cost
A4: 10510 | B4: EXPRESS VOTE | G4: EV0219391586 | H4: 1 | K4: $3,525.00
A5: 10511 | B5: EXPRESS VOTE | G5: EVO219382281 | H5: 1 | K5: $3,525.00
A6: 10512 | B6: EXPRESS VOTE | G6: EV0219382292 | H6: 1 | K6: $3,525.00
A7: 10513 | B7: EXPRESS VOTE | G7: EVO220320421 | H7: 1 | K7: $3,525.00
A8: 10514 | B8: EXPRESS VOTE | G8: EV0219390276 | H8: 1 | K8: $3,525.00
A9: 10515 | B9: EXPRESS VOTE | G9: EV0219382481 | H9: 1 | K9: $3,525.00
A10: 10516 | B10: EXPRESS VOTE | G10: EV021932200 | H10: 1 | K10: $3,525.00
A11: 10517 | B11: EXPRESS VOTE | G11: EV0219382572 | H11: 1 | K11: $3,525.00
A12: 10518 | B12: EXPRESS VOTE | G12: EV0219382604 | H12: 1 | K12: $3,525.00
A13: 10519 | B13: EXPRESS VOTE | G13: EV0219382442 | H13: 1 | K13: $3,525.00
A14: 10520 | B14: EXPRESS VOTE | G14: EV0219382209 | H14: 1 | K14: $3,525.00
A15: 10521 | B15: EXPRESS VOTE | G15: EV0219382674 | H15: 1 | K15: $3,525.00
A16: 10522 | B16: EXPRESS VOTE | G16: EV0219382676 | H16: 1 | K16: $3,525.00
A17: 10523 | B17: EXPRESS VOTE | G17: EV0219320034 | H17: 1 | K17: $3,525.00
A18: 10524 | B18: EXPRESS VOTE | G18: EV0219382683 | H18: 1 | K18: $3,525.00
A19: 10525 | B19: EXPRESS VOTE | G19: EV0219382670 | H19: 1 | K19: $3,525.00
A20: 10526 | B20: EXPRESS VOTE | G20: EV0219382546 | H20: 1 | K20: $3,525.00
A21: 10527 | B21: EXPRESS VOTE | G21: EV0219382538 | H21: 1 | K21: $3,525.00
A22: 10528 | B22: EXPRESS VOTE | G22: EV0219382489 | H22: 1 | K22: $3,525.00
A23: 10529 | B23: EXPRESS VOTE | G23: EVO219382530 | H23: 1 | K23: $3,525.00
A24: 10530 | B24: EXPRESS VOTE | G24: EVO219382243 | H24: 1 | K24: $3,525.00
A25: 10531 | B25: EXPRESS VOTE | G25: EVO219382685 | H25: 1 | K25: $3,525.00
A26: 10532 | B26: EXPRESS VOTE | G26: EVO219382531 | H26: 1 | K26: $3,525.00
A27: 10533 | B27: EXPRESS VOTE | G27: EVO219382447 | H27: 1 | K27: $3,525.00
A28: 10534 | B28: EXPRESS VOTE | G28: EVO219382428 | H28: 1 | K28: $3,525.00
A29: 10535 | B29: EXPRESS VOTE | G29: EVO219382270 | H29: 1 | K29: $3,525.00
A30: 10536 | B30: EXPRESS VOTE | G30: EVO219382712 | H30: 1 | K30: $3,525.00
A31: 10537 | B31: EXPRESS VOTE | G31: EVO219382675 | H31: 1 | K31: $3,525.00
A32: Roane County Government - Inland Marine
A33: Department: Election Commission
A34: Tag # | B34: Item | C34: Location | D34: Vendor | E34: Brand/Model | F34: Model | G34: Serial # | H34: Qty | I34: PO # | J34: Yr Purch | K34: Cost
A35: 10538 | B35: EXPRESS VOTE | G35: EVO219382679 | H35: 1 | K35: $3,525.00
A36: 10539 | B36: EXPRESS VOTE | G36: EVO219382622 | H36: 1 | K36: $3,525.00
A37: 10540 | B37: EXPRESS VOTE | G37: EVO219310624 | H37: 1 | K37: $3,525.00
A38: 10541 | B38: EXPRESS VOTE | G38: EVO219382642 | H38: 1 | K38: $3,525.00
A39: 10542 | B39: EXPRESS VOTE | G39: EVO219310629 | H39: 1 | K39: $3,525.00
A40: 10543 | B40: EXPRESS VOTE | G40: EVO219312543 | H40: 1 | K40: $3,525.00
A41: 10544 | B41: EXPRESS VOTE | G41: EVO219382519 | H41: 1 | K41: $3,525.00
A42: 10545 | B42: EXPRESS VOTE | G42: EVO220320431 | H42: 1 | K42: $3,525.00
A43: 10546 | B43: EXPRESS VOTE | G43: EVO319310385 | H43: 1 | K43: $3,525.00
A44: 10547 | B44: EXPRESS VOTE | G44: EVO219312481 | H44: 1 | K44: $3,525.00
A45: 10548 | B45: EXPRESS VOTE | G45: EVO220320414 | H45: 1 | K45: $3,525.00
A46: 10549 | B46: EXPRESS VOTE | G46: EVO220320460 | H46: 1 | K46: $3,525.00
A47: 10550 | B47: EXPRESS VOTE | G47: EVO218421018 | H47: 1 | K47: $3,525.00
A48: 10551 | B48: EXPRESS VOTE | G48: EVO220320423 | H48: 1 | K48: $3,525.00
A49: 10552 | B49: EXPRESS VOTE | G49: EVO220320466 | H49: 1 | K49: $3,525.00
A50: 10553 | B50: EXPRESS VOTE | G50: EVO218421533 | H50: 1 | K50: $3,525.00
A51: 10554 | B51: EXPRESS VOTE | G51: EVO219340599 | H51: 1 | K51: $3,525.00
A52: 10555 | B52: EXPRESS VOTE | G52: EVO219382738 | H52: 1 | K52: $3,525.00
A53: 10556 | B53: EXPRESS VOTE | G53: EVO219322887 | H53: 1 | K53: $3,525.00
A54: 10557 | B54: EXPRESS VOTE | G54: EVO219311486 | H54: 1 | K54: $3,525.00
A55: 10558 | B55: EXPRESS VOTE | G55: EVO220320429 | H55: 1 | K55: $3,525.00
A56: 10559 | B56: EXPRESS VOTE | G56: EVO219382185 | H56: 1 | K56: $3,525.00
A57: 10560 | B57: EXPRESS VOTE | G57: EVO219322163 | H57: 1 | K57: $3,525.00
A58: 10561 | B58: EXPRESS VOTE | G58: EVO219310678 | H58: 1 | K58: $3,525.00
A59: 10562 | B59: EXPRESS VOTE | G59: EVO219382563 | H59: 1 | K59: $3,525.00
A60: 10563 | B60: EXPRESS VOTE | G60: EVO219382730 | H60: 1 | K60: $3,525.00
A61: 10564 | B61: EXPRESS VOTE | G61: EVO219312514 | H61: 1 | K61: $3,525.00
A62: 10565 | B62: EXPRESS VOTE | G62: EVO219312391 | H62: 1 | K62: $3,525.00
A63: 10566 | B63: EXPRESS VOTE | G63: EVO219382735 | H63: 1 | K63: $3,525.00
A64: 10567 | B64: EXPRESS VOTE | G64: EVO220320417 | H64: 1 | K64: $3,525.00
A65: 10568 | B65: EXPRESS VOTE | G65: EVO220320416 | H65: 1 | K65: $3,525.00
A66: Roane County Government - Inland Marine
A67: Department: Election Commission
A68: Tag # | B68: Item | C68: Location | D68: Vendor | E68: Brand/Model | F68: Model | G68: Serial # | H68: Qty | I68: PO # | J68: Yr Purch | K68: Cost
A69: 10569 | B69: EXPRESS VOTE | G69: EVO218421733 | H69: 1 | K69: $3,525.00
A70: 10570 | B70: EXPRESS VOTE | G70: EVO219311705 | H70: 1 | K70: $3,525.00
A71: 10571 | B71: EXPRESS VOTE | G71: EVO218421496 | H71: 1 | K71: $3,525.00
A72: 10572 | B72: EXPRESS VOTE | G72: EVO219340420 | H72: 1 | K72: $3,525.00
A73: 10573 | B73: EXPRESS VOTE | G73: EVO220320447 | H73: 1 | K73: $3,525.00
A74: 10574 | B74: EXPRESS VOTE | G74: EVO219312277 | H74: 1 | K74: $3,525.00
A75: 10575 | B75: EXPRESS VOTE | G75: EVO218423041 | H75: 1 | K75: $3,525.00
A76: 10576 | B76: EXPRESS VOTE | G76: EVO220320398 | H76: 1 | K76: $3,525.00
A77: 10577 | B77: EXPRESS VOTE | G77: EVO219382645 | H77: 1 | K77: $3,525.00
A78: 10578 | B78: EXPRESS VOTE | G78: EVO220320463 | H78: 1 | K78: $3,525.00
A79: 10579 | B79: EXPRESS VOTE | G79: EVO219382697 | H79: 1 | K79: $3,525.00
A80: 10580 | B80: EXPRESS VOTE | G80: EVO219382708 | H80: 1 | K80: $3,525.00
A81: 10581 | B81: EXPRESS VOTE | G81: EVO218423068 | H81: 1 | K81: $3,525.00
A82: 10582 | B82: EXPRESS VOTE | G82: EVO219382618 | H82: 1 | K82: $3,525.00
A83: 10583 | B83: EXPRESS VOTE | G83: EVO218421704 | H83: 1 | K83: $3,525.00
A84: 10584 | B84: EXPRESS VOTE | G84: EVO219382710 | H84: 1 | K84: $3,525.00
A85: 10585 | B85: EXPRESS VOTE | G85: EVO219322827 | H85: 1 | K85: $3,525.00
A86: 10586 | B86: EXPRESS VOTE | G86: EVO219382037 | H86: 1 | K86: $3,525.00
A87: 10587 | B87: EXPRESS VOTE | G87: EVO219335525 | H87: 1 | K87: $3,525.00
A88: 10588 | B88: EXPRESS VOTE | G88: EVO219311874 | H88: 1 | K88: $3,525.00
A89: 10589 | B89: EXPRESS VOTE | G89: EVO219382487 | H89: 1 | K89: $3,525.00
A90: 10590 | B90: EXPRESS VOTE | G90: EVO219382432 | H90: 1 | K90: $3,525.00
A91: 10591 | B91: EXPRESS VOTE | G91: EVO219313262 | H91: 1 | K91: $3,525.00
A92: 10592 | B92: EXPRESS VOTE | G92: EVO219382490 | H92: 1 | K92: $3,525.00
A93: 10593 | B93: EXPRESS VOTE | G93: EVO219382700 | H93: 1 | K93: $3,525.00
A94: 10594 | B94: EXPRESS VOTE | G94: EVO219382643 | H94: 1 | K94: $3,525.00
A95: 10595 | B95: EXPRESS VOTE | G95: EVO219382479 | H95: 1 | K95: $3,525.00
A96: 10596 | B96: EXPRESS VOTE | G96: EVO220320424 | H96: 1 | K96: $3,525.00
A97: 10597 | B97: EXPRESS VOTE | G97: EVO219310711 | H97: 1 | K97: $3,525.00
A98: Roane County Government - Inland Marine
A99: Department: Election Commission
A100: Tag # | B100: Item | C100: Location | D100: Vendor | E100: Brand/Model | F100: Model | G100: Serial # | H100: Qty | I100: PO # | J100: Yr Purch | K100: Cost
A101: 10598 | B101: EXPRESS VOTE | G101: EVO219310680 | H101: 1 | K101: $3,525.00
A102: 10599 | B102: EXPRESS VOTE | G102: EVO219382741 | H102: 1 | K102: $3,525.00
A104: 10600 | B104: ES200 | G104: DSO318380257 | H104: 1 | K104: $6,255.00
A105: 10601 | B105: ES200 | G105: DSO319380325 | H105: 1 | K105: $6,255.00
A106: 10602 | B106: ES200 | G106: DSO319390453 | H106: 1 | K106: $6,255.00
A107: 10603 | B107: ES200 | G107: DSO319380093 | H107: 1 | K107: $6,255.00
A108: 10604 | B108: ES200 | G108: DSO319372936 | H108: 1 | K108: $6,255.00
A109: 10605 | B109: ES200 | G109: DSO319390450 | H109: 1 | K109: $6,255.00
A110: 10606 | B110: ES200 | G110: DSO319380166 | H110: 1 | K110: $6,255.00
A111: 10607 | B111: ES200 | G111: DSO319390463 | H111: 1 | K111: $6,255.00
A112: 10608 | B112: ES200 | G112: DSO319390447 | H112: 1 | K112: $6,255.00
A113: 10609 | B113: ES200 | G113: DSO319372973 | H113: 1 | K113: $6,255.00
A114: 10610 | B114: ES200 | G114: DSO319390448 | H114: 1 | K114: $6,255.00
A115: 10611 | B115: ES200 | G115: DSO319372971 | H115: 1 | K115: $6,255.00
A116: 10612 | B116: ES200 | G116: DSO319372969 | H116: 1 | K116: $6,255.00
A117: 10613 | B117: ES200 | G117: DSO319380712 | H117: 1 | K117: $6,255.00
A118: 10614 | B118: ES200 | G118: DSO319390465 | H118: 1 | K118: $6,255.00
A119: 10615 | B119: ES200 | G119: DSO319390423 | H119: 1 | K119: $6,255.00
A120: 10616 | B120: ES200 | G120: DSO319380119 | H120: 1 | K120: $6,255.00
A121: 10617 | B121: ES200 | G121: DSO319390324 | H121: 1 | K121: $6,255.00
A122: 10618 | B122: ES200 | G122: DSO319380307 | H122: 1 | K122: $6,255.00
A123: 10619 | B123: ES200 | G123: DSO319380354 | H123: 1 | K123: $6,255.00
A124: 10620 | B124: ES200 | G124: DSO319380092 | H124: 1 | K124: $6,255.00
A125: 10621 | B125: ES200 | G125: DSO319380116 | H125: 1 | K125: $6,255.00
A126: 10622 | B126: ES200 | G126: DSO319390437 | H126: 1 | K126: $6,255.00
A127: 10623 | B127: ES200 | G127: DSO319390466 | H127: 1 | K127: $6,255.00
A128: 10624 | B128: ES200 | G128: DSO319390354 | H128: 1 | K128: $6,255.00
A129: 10625 | B129: ES200 | G129: DSO319380090 | H129: 1 | K129: $6,255.00
A130: 10626 | B130: ES200 | G130: DSO319380766 | H130: 1 | K130: $6,255.00
A131: 10627 | B131: ES200 | G131: DSO319380327 | H131: 1 | K131: $6,255.00
A132: 10628 | B132: ES200 | G132: DSO319380057 | H132: 1 | K132: $6,255.00
A133: 10629 | B133: ES200 | G133: DSO319380045 | H133: 1 | K133: $6,255.00
A134: 10630 | B134: ES200 | G134: DSO319390015 | H134: 1 | K134: $6,255.00
A135: 10631 | B135: ES200 | G135: DSO319380327 | H135: 1 | K135: $6,255.00
A137: 10760 | B137: EXPRESSVOTE ELECTRONIC POLLBOOK | G137: 14500401151 | H137: 1 | K137: $1,150.00
A138: 10761 | B138: EXPRESSVOTE ELECTRONIC POLLBOOK | G138: 15316501151 | H138: 1 | K138: $1,150.00
A139: 10762 | B139: EXPRESSVOTE ELECTRONIC POLLBOOK | G139: 14303301151 | H139: 1 | K139: $1,150.00
A140: 10763 | B140: EXPRESSVOTE ELECTRONIC POLLBOOK | G140: 15238201151 | H140: 1 | K140: $1,150.00
A141: 10764 | B141: EXPRESSVOTE ELECTRONIC POLLBOOK | G141: 15186701151 | H141: 1 | K141: $1,150.00
A142: 10765 | B142: EXPRESSVOTE ELECTRONIC POLLBOOK | G142: 15113301151 | H142: 1 | K142: $1,150.00
A143: 10766 | B143: EXPRESSVOTE ELECTRONIC POLLBOOK | G143: 15188501151 | H143: 1 | K143: $1,150.00
A144: 10767 | B144: EXPRESSVOTE ELECTRONIC POLLBOOK | G144: 15273301151 | H144: 1 | K144: $1,150.00
A145: 10768 | B145: EXPRESSVOTE ELECTRONIC POLLBOOK | G145: 15211401151 | H145: 1 | K145: $1,150.00
A146: 10769 | B146: EXPRESSVOTE ELECTRONIC POLLBOOK | G146: 15043101151 | H146: 1 | K146: $1,150.00
A147: 10770 | B147: EXPRESSVOTE ELECTRONIC POLLBOOK | G147: 15298301151 | H147: 1 | K147: $1,150.00
A148: 10771 | B148: EXPRESSVOTE ELECTRONIC POLLBOOK | G148: 15243601151 | H148: 1 | K148: $1,150.00
A149: 10772 | B149: EXPRESSVOTE ELECTRONIC POLLBOOK | G149: 15139201151 | H149: 1 | K149: $1,150.00
A150: 10773 | B150: EXPRESSVOTE ELECTRONIC POLLBOOK | G150: 151279401151 | H150: 1 | K150: $1,150.00
A151: 10774 | B151: EXPRESSVOTE ELECTRONIC POLLBOOK | G151: 14363401151 | H151: 1 | K151: $1,150.00
A152: 10775 | B152: EXPRESSVOTE ELECTRONIC POLLBOOK | G152: 15164401151 | H152: 1 | K152: $1,150.00
A153: 10776 | B153: EXPRESSVOTE ELECTRONIC POLLBOOK | G153: 15072601151 | H153: 1 | K153: $1,150.00
A154: 10777 | B154: EXPRESSVOTE ELECTRONIC POLLBOOK | G154: 15208501151 | H154: 1 | K154: $1,150.00
A155: 10778 | B155: EXPRESSVOTE ELECTRONIC POLLBOOK | G155: 15260701151 | H155: 1 | K155: $1,150.00
A156: 10779 | B156: EXPRESSVOTE ELECTRONIC POLLBOOK | G156: 14578301151 | H156: 1 | K156: $1,150.00
A157: 10780 | B157: EXPRESSVOTE ELECTRONIC POLLBOOK | G157: 14906101151 | H157: 1 | K157: $1,150.00
A158: 10781 | B158: EXPRESSVOTE ELECTRONIC POLLBOOK | G158: 14615401151 | H158: 1 | K158: $1,150.00
A159: 10782 | B159: EXPRESSVOTE ELECTRONIC POLLBOOK | G159: 15020601151 | H159: 1 | K159: $1,150.00
A160: 10783 | B160: EXPRESSVOTE ELECTRONIC POLLBOOK | G160: 15289301151 | H160: 1 | K160: $1,150.00
A161: 10784 | B161: EXPRESSVOTE ELECTRONIC POLLBOOK | G161: 14695301151 | H161: 1 | K161: $1,150.00
A162: 10785 | B162: EXPRESSVOTE ELECTRONIC POLLBOOK | G162: 15193201151 | H162: 1 | K162: $1,150.00
A163: 10786 | B163: EXPRESSVOTE ELECTRONIC POLLBOOK | G163: 8537501151 | H163: 1 | K163: $1,150.00
A164: 10787 | B164: EXPRESSVOTE ELECTRONIC POLLBOOK | G164: 15227401151 | H164: 1 | K164: $1,150.00
A165: 10788 | B165: EXPRESSVOTE ELECTRONIC POLLBOOK | G165: 15229201151 | H165: 1 | K165: $1,150.00
A166: 10789 | B166: EXPRESSVOTE ELECTRONIC POLLBOOK | G166: 14252701151 | H166: 1 | K166: $1,150.00
A167: 10790 | B167: EXPRESSVOTE ELECTRONIC POLLBOOK | G167: 14661301151 | H167: 1 | K167: $1,150.00
A168: 10791 | B168: EXPRESSVOTE ELECTRONIC POLLBOOK | G168: 15145501151 | H168: 1 | K168: $1,150.00
A169: 10792 | B169: EXPRESSVOTE ELECTRONIC POLLBOOK | G169: 14728601151 | H169: 1 | K169: $1,150.00
A170: 10793 | B170: EXPRESSVOTE ELECTRONIC POLLBOOK | G170: 15232101151 | H170: 1 | K170: $1,150.00
A171: 10794 | B171: EXPRESSVOTE ELECTRONIC POLLBOOK | G171: 14529701151 | H171: 1 | K171: $1,150.00
A172: 10795 | B172: EXPRESSVOTE ELECTRONIC POLLBOOK | G172: 15236401151 | H172: 1 | K172: $1,150.00
A173: 10796 | B173: EXPRESSVOTE ELECTRONIC POLLBOOK | G173: 14697101151 | H173: 1 | K173: $1,150.00
A174: 10797 | B174: EXPRESSVOTE ELECTRONIC POLLBOOK | G174: 15204201151 | H174: 1 | K174: $1,150.00
A175: 10798 | B175: EXPRESSVOTE ELECTRONIC POLLBOOK | G175: 14656601151 | H175: 1 | K175: $1,150.00
A176: 10799 | B176: EXPRESSVOTE ELECTRONIC POLLBOOK | G176: 15280501151 | H176: 1 | K176: $1,150.00
A177: 10800 | B177: EXPRESSVOTE ELECTRONIC POLLBOOK | G177: 14607301151 | H177: 1 | K177: $1,150.00
A178: 10801 | B178: EXPRESSVOTE ELECTRONIC POLLBOOK | G178: 14912401115 | H178: 1 | K178: $1,150.00
A179: 10802 | B179: EXPRESSVOTE ELECTRONIC POLLBOOK | G179: 15245401151 | H179: 1 | K179: $1,150.00
A180: 10803 | B180: EXPRESSVOTE ELECTRONIC POLLBOOK | G180: 15102501151 | H180: 1 | K180: $1,150.00
A181: 10804 | B181: EXPRESSVOTE ELECTRONIC POLLBOOK | G181: 15268601151 | H181: 1 | K181: $1,150.00
A182: 10805 | B182: EXPRESSVOTE ELECTRONIC POLLBOOK | G182: 15278501151 | H182: 1 | K182: $1,150.00
A183: 10806 | B183: EXPRESSVOTE ELECTRONIC POLLBOOK | G183: 15319201151 | H183: 1 | K183: $1,150.00
A184: 10807 | B184: EXPRESSVOTE ELECTRONIC POLLBOOK | G184: 14455201151 | H184: 1 | K184: $1,150.00
A186: 10808 | B186: EXPRSSVOTE PRINTER | G186: 1902237063 | H186: 1 | K186: $725.00
A187: 10809 | B187: EXPRSSVOTE PRINTER | G187: 1902237240 | H187: 1 | K187: $725.00
A188: 10810 | B188: EXPRSSVOTE PRINTER | G188: 1902237253 | H188: 1 | K188: $725.00
A189: 10811 | B189: EXPRSSVOTE PRINTER | G189: 1902237093 | H189: 1 | K189: $725.00
A190: 10812 | B190: EXPRSSVOTE PRINTER | G190: 1902237156 | H190: 1 | K190: $725.00
A191: 10813 | B191: EXPRSSVOTE PRINTER | G191: 1902237175 | H191: 1 | K191: $725.00
A193: 10420 | B193: EXPRESSVOTE QUAD CART | H193: 1 | K193: $2,625.00
A194: 10421 | B194: EXPRESSVOTE QUAD CART | H194: 1 | K194: $2,625.00
A195: 10422 | B195: EXPRESSVOTE QUAD CART | H195: 1 | K195: $2,625.00
A196: 10423 | B196: EXPRESSVOTE QUAD CART | H196: 1 | K196: $2,625.00
A197: 10424 | B197: EXPRESSVOTE QUAD CART | H197: 1 | K197: $2,625.00
A198: 10425 | B198: EXPRESSVOTE QUAD CART | H198: 1 | K198: $2,625.00
A199: 10426 | B199: EXPRESSVOTE QUAD CART | H199: 1 | K199: $2,625.00
A200: 10427 | B200: EXPRESSVOTE QUAD CART | H200: 1 | K200: $2,625.00
A201: 10428 | B201: EXPRESSVOTE QUAD CART | H201: 1 | K201: $2,625.00
A202: 10429 | B202: EXPRESSVOTE QUAD CART | H202: 1 | K202: $2,625.00
A203: 10430 | B203: EXPRESSVOTE QUAD CART | H203: 1 | K203: $2,625.00
A204: 10431 | B204: EXPRESSVOTE QUAD CART | H204: 1 | K204: $2,625.00
... 22 more rows

Sheet Hwy
A1: Roane County Government - INLAND MARINE
A2: Department: Highway
A3: EQUIPMENT | B3: YEAR | C3: MFG | D3: MODEL | E3: SERIAL NUMBER | F3: COST
A4: Grader | B4: 1993 | C4: Dresser | D4: 830 | E4: 200456 | F4: $80,026.00
A5: Loader | B5: 1978 | C5: Caterpillar | D5: 955L | E5: 85J11481 | F5: $15,000.00
A6: Road Roller | B6: =Hwy!F ->  | C6: Ingersoll Rand | D6: DA50 | E6: 6116S | F6: $7,000.00
A7: Snow Plow (2) | B7: 2017 | C7: Lot Pro Meyer | F7: $11,200.00
A8: Sheeps Foot Roller | D8: 4' Double Drum | E8: 674 | F8: $4,000.00
A9: Bush-Hog Side Mount | B9: 1989 | C9: Alamo Versa | E9: 1748 | F9: $7,667.00
A10: Bush-Hog Side Mount | B10: 1990 | C10: Alamo 60" | E10: 60VM-01093 | F10: $6,917.00
A11: Roller | C11: Caterpillar | D11: State Contract 50614 | E11: CB14B | F11: $25,000.00
A12: (2) Snow Plows | C12: Meyers 9' | F12: $4,000.00
A13: Tractor, S Mow #T10 | B13: 1997 | C13: Ford (Chilton) | E13: 305609M | F13: $25,988.00
A14: Tractor w/Side #T12 | B14: 1998 | C14: New Holland | E14: 308727M5610 | F14: $27,459.00
A15: (2) Snow Plow 7-1/2 | C15: Western | F15: $3,500.00
A17: Side Mower | B17: 2001 | C17: Alamo | D17: 5' | E17: 4628 | F17: $5,000.00
A18: Wood Chipper | B18: 2002 | C18: Vermeer | D18: BC1230A | E18: 1VRN1517221003622 | F18: $21,318.00
A19: Excavator cutter attachment | C19: Caterpillar | D19: State Contract 50623 | F19: $4,500.00
A20: Pressure washer | B20: 2017 | C20: Hotsy | D20: 795SS | E20: 172970 | F20: $4,225.00
A21: Backhoe | B21: 2004 | C21: John Deere | D21: 310SG | F21: $53,839.00
A22: Paver | B22: 2004 | C22: LeeBoy | D22: 8500T-40309 | E22: 12003008662 | F22: $79,950.00
A23: Roller | C23: Ingersoll Rand | D23: DD30 | E23: 163784 | F23: $19,250.00
A24: Backhoe | B24: 2006 | C24: Caterpillar | D24: 420E | E24: HLS01769 | F24: $71,998.00
A26: Boom Mower | B26: 2006 | C26: Alamo | D26: Machete | E26: MR60-02201 | F26: $37,400.00
A27: BushHog | B27: 2007 | C27: Evans Brown | D27: Property#5078 | E27: KOBA | F27: $10,000.00
A28: BushHog | B28: 2007 | C28: Evans Brown | D28: Property#5079 | E28: KOBA | F28: $10,000.00
A29: Tractor #16 | B29: 2007 | C29: New Holland | D29: TS100A | E29: ACP257041 | F29: $39,643.00
A30: Roane County Government - INLAND MARINE
A31: Department: Highway
A32: EQUIPMENT | B32: YEAR | C32: MFG | D32: MODEL | E32: SERIAL NUMBER | F32: COST
A33: Boom Mower | B33: 2007 | C33: Alamo | D33: Machete | E33: 2233 | F33: $39,334.00
A34: Flexwing rotary mower | C34: BUSH HOG | D34: 2810-3 | E34: 1HBDR1180450010 | F34: $14,825.00
A35: Bobcat | B35: 2016 | C35: Bobcat | D35: E-55 | E35: AJ1912086 | F35: $59,599.50
A36: Loader | C36: Skid Steer | D36: T650 | E36: ALJG19599 | F36: $50,617.30
A37: Flexwing rotary mower | C37: BUSH HOG | D37: 2810-3 | E37: 1HBDR1180440007 | F37: $14,825.00
D38: E-55
A39: Side Mower | B39: 2008 | C39: Diamond | D39: DSR-60C | E39: MF10441 | F39: $11,085.00
A41: Side Mower | B41: 2008 | C41: Diamond | D41: DSR-60C | E41: MF10409 | F41: $11,085.00
A42: Tractor #19 | B42: 2009 | C42: New Holland | D42: T6020 | E42: Z9BD04174 | F42: $39,500.00
A43: Tractor & Side Arm | B43: 2018 | C43: New Holland | D43: Powerstar 90 | E43: TJLE50644 | F43: $74,759.00
A44: Skid Loader | B44: 2009 | C44: Bobcat | D44: S205K | E44: A3U12060 | F44: $34,928.22
A45: Tilt Bucket attachment | B45: 2009 | C45: Bobcat | D45: 47534 | E45: 224101425 | F45: Included w/ Loader
A46: Portable Message Boards | C46: K&K | D46: MB3L | F46: $75,076.00
A47: Boom Mower | B47: 2010 | C47: Alamo | D47: MB21 | E47: 2290 | F47: $41,788.27
A48: Tractor#13 Long Arm | B48: 2010 | C48: John Deere | D48: 6230 | E48: L06230H649884 | F48: $40,920.00
A49: Portable Traffic Signals | C49: Horizon | D49: SQ3T5 | F49: $50,800.00
A50: Portable Traffic Signals | C50: Horizon | D50: SQ3T5 | F50: $70,000.00
A51: Tractor #20 | B51: 2011 | C51: John Deere | D51: 6230 | E51: 1LOG230XAB | F51: $36,594.84
A52: Side Mower | B52: 2011 | C52: Alamo | D52: Brahma | E52: H686231 | F52: $26,525.00
A53: Bush CUTTER | C53: Cat | E53: SWB00499 | F53: $10,000.00
A55: Tractors (2) | B55: 2014 | C55: New Holland | D55: T56.110 | F55: $94,200.00
A56: Rotary Mower | C56: Tiger | D56: tsr60 extrm duty | F56: $40,900.00
A57: Snow Plow | C57: meyers | D57: full trip steel | F57: $5,705.00
A58: Snow Plow | C58: Western | F58: $4,800.00
A59: Mini Excavator | B59: 2014 | C59: Bobcat | D59: E50 | E59: AJ1811G84 | F59: $55,603.47
A60: Track Loader with Bucket & Forks | B60: 2014 | C60: Bobcat | D60: T650 | E60: ALJG12294 | F60: $48,779.36
A61: Roane County Government - INLAND MARINE
A62: Department: Highway
A63: EQUIPMENT | B63: YEAR | C63: MFG | D63: MODEL | E63: SERIAL NUMBER | F63: COST
A64: (8) Salt Boxes | B64: 2014 | C64: V-Maxx | F64: $19,300.00
A65: Bull Dozer | C65: Caterpillar | D65: D7 | F65: $80,000.00
A66: Loader | C66: Volvo | D66: BML90B | F66: $35,000.00
A67: Grader | C67: Caterpillar | D67: 130H | E67: 7GBC1058 | F67: $3,894.00
A68: New Holland | B68: 2014 | C68: TS6.110 Tractor and Boom Deck | E68: nh05435m and 10677 | F68: $84,794.00
A69: Track Loader | C69: John Deere | D69: 755BH | F69: $8,625.00
A70: 4 ton propane hot box | B70: 2016 | C70: Keiser Morris | D70: KM8000TEDD | F70: $12,020.00
A72: Utility trailer with drum | B72: 2016 | C72: Keiser Morris | D72: KM8000TEDDC1M1 | E72: 1K9BU1827GN246167 | F72: $12,980.00
A73: RADIOS
A74: 1 Base | C74: Motorola | F74: $3,026.00
A75: (11) Portable ($2,250 each) | C75: Motorola | F75: =2250*11 -> $24,750.00
A76: (27) Mobile ($4,620 each) | C76: Motorola | F76: =4620*27 -> $124,740.00
A77: (3)PORTABLE ($2718 each) | B77: 2021 | C77: Motorola | D77: APX900 | F77: $8,154.00
A78: TRACTOR - MOWER | B78: 2015 | C78: JOHN DEER | D78: IP06115DHF0061238 | F78: $117,165.00
A79: (1) SALT SPREADER | B79: 2020 | C79: VMAX | D79: SHOWEX | F79: $4,425.00
A80: SALT SPREADER | B80: 2012 | C80: SWENSON | D80: S2 | E80: 1015-9003 | F80: $3,000.00
A81: SALT SPREADER | B81: 2012 | C81: SWENSON | D81: S2 | E81: 1015-9004 | F81: $3,000.00
A82: SALT SPREADER | B82: 2012 | C82: SWENSON | D82: S2 | E82: 1015-9005 | F82: $3,000.00
A83: SALT SPREADER | B83: 2012 | C83: SWENSON | D83: S2 | E83: 1015-9006 | F83: $3,000.00
A84: TRACTOR W/BOOM MOWER | B84: 2007 | C84: NEW HOLLAND | E84: VIN# ACP281453*PGC7BX1*305623 | F84: $1,200.00
A85: STRIPING MACHINE | F85: $19,000.00
A86: GRAPPLE ATTACHMENT | C86: KENCO | D86: KL12KT12 | E86: 5192101902 | F86: $2,500.00
A87: GRAPPLE ATTACHMENT | C87: BOBCAT | D87: AE6H04635 | F87: $3,500.00
A88: SNOW PLOWS (2) | C88: SNOWDOGG | D88: EX75 | F88: $8,000.00
A89: SWEEPER ATTACHMENT | C89: BOBCAT | E89: NO #'S ANYWHERE
A90: ROARY MOWER (3) | C90: TIGER | E90: NO #'S ANYWHERE
A91: MOWER | B91: 2022 | C91: ALAMO EAGLE | D91: 10' FLEX-WING | E91: EGL-10-230401 | F91: $32,160.30
A92: MOWER | B92: 2022 | C92: ALAMO EAGLE | D92: ALM-ROTARY | E92: EGL 10-221201 | F92: $30,148.25
E96: TOTAL | F96: =SUM(F4:F95) -> $2,174,511.51

Sheet Rcy
A1: Roane County Government - Inland Marine
A2: Department: Recycling Center
A3: Tag # | B3: Item | C3: Brand/Model | D3: Model | E3: Serial # | F3: Qty | G3: PO # | H3: Cost
B5: BOBCAT | C5: S 570 | E5: ALM417892 | F5: 1
B6: CAT SKID STEER LOADER | C6: MODEL 242B | E6: EBXMO3433 | F6: 1 | G6: 123-200073 | H6: $23,900.00
B7: SKID STEER CARRIAGE & 42" FORKS | C7: S175 | E7: 65SSFP007389 | F7: 1 | G7: 123-200073 | H7: $700.00
B8: COMPACTOR (SEE ATTACHED) | C8: H72AA2B | E8: 10-238 | F8: 1 | H8: $100,000.00
B10: 6 CUBIC YARD CONTAINERS | C10: D&W | F10: 1 | G10: 116-70027 | H10: $20,107.00
B11: 30 CUBIC YARD CONATINERS | C11: D&W | F11: 1 | G11: 116-70027 | H11: $3,425.00
B12: 40 CUBIC YARD CONTAINERS | C12: D&W | F12: 1 | G12: 116-70027 | H12: $2,613.00
B13: 40 YARD CONTAINERS | C13: WASTEQUIP HOLT | F13: 2 | G13: 123-90051 | H13: $12,832.00
B14: 40 YARD CONTAINERS | C14: WASTEQUIP HOLT | F14: 2 | G14: 116-90015 | H14: $8,464.00
B15: 30 HP COMPACTOR(SEE ATTACH) | C15: MUNICIPAL | F15: 1 | G15: 123-100041 | H15: $24,064.00
B16: 42 YARD RECEIVER BOX | C16: MUNICIPAL | F16: 2 | G16: 123-100041 | H16: $14,988.00
B17: 40 YARD RECEIVER BOX | C17: MUNICIPAL | D17: PR2290 | E17: 95546 | F17: 4 | H17: $24,000.00
B18: 20 YARD CONTAINERS | C18: D&W | F18: 5 | G18: 116-200037 | H18: $18,716.50
B19: 30 YARD CONTAINERS | C19: D&W | F19: 2 | G19: 116-200037 | H19: $9,044.20
B20: 40 YARD CONTAINER | C20: D&W | F20: 1 | G20: 123-200079 | H20: $5,402.10
B21: RECYCLING CONTAINERS | C21: D&W | F21: 2 | G21: 123-200079 | H21: $15,296.00
B22: WASTE OIL CONTAINERS | C22: 2,200 EACH | F22: 12 | H22: $13,200.00
A23: 10480 | B23: 7" x 18" LOAD TRAILER | C23: LOAD TRAIL | D23: 1280545 | E23: 4ZECA1821P1280545 | F23: 1 | G23: 171-230005 | H23: $6,995.00
B26: OIL FILTER CRUSHER | C26: QUICK PACK | D26: GP160 | F26: 1 | H26: $1,695.00
B27: WASTE OIL HEATER CB-3500 | C27: CLEAN BURN ENERGY SYSTEM | E27: 46589 | H27: $10,000.00
B28: BOBCAT | D28: 5570 | E28: ALM429865 | F28: 1
B29: CONTAINER 42 YARD | C29: WQ1007 | E29: 110667 | F29: 1 | G29: 171-160060 | H29: $7,525.00
B30: CONTAINER 42 YARD | E30: 110662 | F30: 1 | G30: 171-160060 | H30: $7,525.00
B31: CONTAINER 42 YARD | E31: 110090 | F31: 1 | G31: 171-160060 | H31: $7,525.00
B32: SOLAR COMPACTOR WITH 2 BOXES | C32: ORCHARD VIEW | D32: RJ-250-SC-ULTRA | E32: 2182725 | F32: 1 | H32: $35,000.00
B33: FORKS | D33: 54770 | E33: 6540182 | F33: 1 | H33: $254.60
B34: ATTACHMENT | D34: 54797 | E34: 6712927 | F34: 1 | H34: $323.00
B35: BOSCH | C35: LASER AND MEASURING TOOL | D35: GLL 150 E LR 3 | E35: 711000106 | F35: 1
B36: HARVARD | C36: HYDRAULIC OIL FILTRATION SYSTEM | D36: 87D 8 T | E36: 1304872081798 | F36: 1 | G36: 171-180085
B37: YELLOW JACKET 4X4 FLOOR SCALES | C37: FAIRBANKS | D37: 3500-211 | E37: 181160010008 | F37: 1 | G37: 171-180095 | H37: $1,900.00
B38: TRUCK SCALES | C38: EAST TN SCALE WORKS | D38: 2250/BMS/LP8 7011 | E38: 9300060004 | F38: 1 | G38: 171-170061 | H38: $75,963.00
B39: BAILER | C39: HEAVY MACHINES | D39: BADGER L50 S2 10/8 | E39: 10148861 | F39: 1 | G39: 171-900010 | H39: $260,450.00
B41: SORTING LINE | C41: MUNICIPAL EQUIP | D41: SB-M-36 | E41: 51498385 | F41: 1 | G41: 171-900081 | H41: $110,000.00
B42: OIL FILTER CRUSHER | C42: J BISIO | E42: 65-010315 | F42: 1 | G42: 171-180085 | H42: $1,695.00
B43: USED OIL CONTAINER | C43: J BISIO | F43: 1 | G43: 171-180101 | H43: $2,287.00
B44: USED ANTIFREEZE CONTAINER | C44: J BISIO | F44: 1 | G44: 171-180101 | H44: $1,225.00
B45: PALLETT FORKS ROATATING | C45: STOWERS CAT | E45: 19LA12002 | F45: 1 | G45: 128-200035 | H45: $3,400.00
B46: BALER | C46: EXCEL/EX6011 | E46: EX2084 | F46: 1 | H46: $49,500.00
B47: WASTE OIL HEATER | C47: JETAWAY/J97 | E47: 35077400 | F47: 1 | H47: $12,000.00
A48: 10923 | B48: OPEN-TOP ROLL OFF CONTAINER | C48: WASTEQUIP | E48: 208149 | F48: 1 | G48: 171-220009 | H48: $11,085.00
A49: 10924 | B49: 40-YARD RECYCLING CONTAINER | C49: WASTEQUIP | E49: 207366 | F49: 1 | G49: 171-220009 | H49: $16,971.00
A50: 10925 | B50: 40-YARD RECYCLING CONTAINER | C50: WASTEQUIP | E50: 209909 | F50: 1 | G50: 171-220009 | H50: $16,971.00
A51: 10926 | B51: 40-YARD RECYCLING CONTAINER | C51: WASTEQUIP | E51: 209907 | F51: 1 | G51: 171-220009 | H51: $16,971.00
A52: 10927 | B52: 40-YARD RECYCLING CONTAINER | C52: WASTEQUIP | E52: 209906 | F52: 1 | G52: 171-220009 | H52: $16,971.00
A53: 10929 | B53: CUBIC YARD ROTATOR BOX | F53: 1
B54: BOBCAT GRAPPLE BUCKET | C54: 5570 T4 | E54: ALM 42865 | F54: 1 | H54: $1,193.00
B55: RUGGED 2 YD ROTATOR BOX | C55: RTB-RUG-540 | F55: 1 | H55: $1,193.00
B56: RUGGED 2 YD ROTATOR BOX | C56: RTB-RUG-540 | F56: 1 | H56: $1,193.00
B58: 2012 SKID LOADER | E58: A3L540076 | F58: 1 | H58: $19,222.65
B59: COMPACTOR ATTACHMENT | C59: GARBAGE | E59: CARDBOARD
B61: CAVE CREEK | C61: 1 | E61: 1 | H61: $60,000.00
B62: CLAX GAP | C62: 1 | E62: 1 | H62: $60,000.00
B63: GALLAHER | C63: 1 | E63: 1 | H63: $60,000.00
B64: ORCHARD VIEW | C64: 1 | E64: 1 | H64: $60,000.00
B65: SWAN POND | C65: 1 | E65: 1 | H65: $60,000.00
B66: BLUE SPRINGS | C66: 1 | E66: 1 | H66: $60,000.00
B67: BRADBURY | C67: 1 | E67: 0 | H67: $35,000.00
B68: GLEN ALICE | C68: 0 | E68: 0 | H68: $15,000.00
B69: PAINT ROCK | C69: 1 | E69: 0 | H69: $35,000.00
B70: POST OAK | C70: 1 | E70: 0 | H70: $35,000.00
B71: PUMPHOUSE | C71: 1 | E71: 0 | H71: $35,000.00
B72: SOUTH 58 | C72: 1 | E72: 0 | H72: $35,000.00
B73: MAIN CENTER | C73: 3 | E73: 0 | H73: $105,000.00
G77: TOTAL | H77: =SUM(H5:H76) -> $1,648,785.05

Sheet Sheriff
A1: Roane County Government - INLAND MARINE
A2: Department: SHERIFF
A3: Tag # | B3: Item | C3: Brand/Model | D3: Serial # | E3: Qty | F3: PO # | G3: Cost
B4: CAR RADIOS | G4: $125,000.00
B5: PORTABLE RADIOS | G5: $200,000.00
B6: GUNS | G6: $79,596.00
B7: AUDIO SURVEILLANCE | G7: $13,500.00
B8: CONTRABAND TEAM INSPECTION KIT | C8: 870 | G8: $19,000.00
B9: GENERATOR | G9: $16,000.00
B10: INTOXIMETER 5000 | D10: ECX-002403:03742 | G10: $5,000.00
B11: (2) MOWERS | E11: 2 | G11: $12,000.00
B12: THERMO IMAGER | C12: RAYTHEON | D12: 250-007-796 | G12: $13,500.00
B13: TRAILER | E13: 1 | G13: $2,500.00
B14: TRAILER | E14: 1 | G14: $4,000.00
B15: COMMAND TRAILER | E15: 1 | G15: $47,000.00
A16: 7919 | B16: SNAPPER MOWER | C16: SNAPPER S800X | G16: $10,000.00
B18: DRONE #1
B19: DJI Mavic Enterprise Advanced | C19: Lite | D19: 4GCCKQR0B0QT5 | E19: 1 | G19: $8,000.00
B20: Mavic 2 & Accessories
B22: DJI Smart Controller | C22: RM500 | D22: 13MBK6DR0101ST | E22: 1
B23: DJI Smart Controller | C23: RM500 | D23: 13MBJ65R0100J9 | E23: 1
B25: Flight Batteries
B26: Battery: DJI Intelligent | C26: R-41156884 | D26: 161AK59639007J | E26: 1
B27: Battery: DJI Intelligent | C27: R-41156884 | D27: 161AJ7E63800X9 | E27: 1
B28: Battery: DJI Intelligent | C28: R-41156884 | D28: 161AK62639007A | E28: 1
B29: Battery: DJI Intelligent | C29: R-41156884 | D29: 161AJ7E6380159 | E29: 1
B30: Battery: DJI Intelligent | C30: R-41156884 | D30: 161AK62639006F | E30: 1
B31: Battery: DJI Intelligent | C31: R-41156884 | D31: 161AK62639002B | E31: 1
B32: Battery: DJI Intelligent | C32: R-41156884 | D32: 161AK62639005P | E32: 1
B33: Battery: DJI Intelligent | C33: R-41156884 | D33: 161AJ7E638014V | E33: 1
B34: Battery: DJI Intelligent | C34: R-41156884 | D34: 161AJ7E638003L | E34: 1
B36: DRONE #1 Cont'
B37: Strobe Attachments | C37: M2E Beacon | D37: 1D6CK6HR0C1KPH | E37: 1
B38: Strobe Attachments | C38: M2E Beacon | D38: 1D6CJ56R0C0BXY | E38: 1
B40: Spotlight Attachments | C40: M2E Spotlight | D40: 1D5CK6A01b1DWS | E40: 1
B41: Spotlight Attachments | C41: M2E Spotlight | D41: 1D5CJ5E01B0CSG | E41: 1
B43: Speaker Attachment | C43: M2E Speaker | D43: 1D7CK5L01A1AAL | E43: 1
B45: DRONE #2
B46: DJI Mavic Pro | C46: M1P | D46: 08QUE4F00A00YE | E46: 1 | G46: $2,800.00
B48: DJI Controller | C48: GL200A | D48: 0BW084L0C13844
B50: Smart Batteries | C50: R-41056367 | D50: 093AGBR03302NT | E50: 1
B51: Smart Batteries | C51: R-41056367 | D51: 093AGBR03301JB | E51: 1
B52: Smart Batteries | C52: R-41056367 | D52: 093AGBP03300EW | E52: 1
B53: Smart Batteries | C53: R-41056367 | D53: 093AGBR03302P2 | E53: 1
F60: TOTAL: | G60: =SUM(G4:G59) -> $557,896.00

Sheet OES
A1: Roane County Government - INLAND MARINE
A2: Department: OES
A3: Tag # | B3: Item | C3: Location | D3: Brand/Model | E3: Serial # | F3: Qty | G3: Cost
A4: 10311 | B4: AIR BOTTLE | D4: SCOTT 45 MIN | E4: 320837 | F4: 1 | G4: $1,500.00
A5: 10312 | B5: AIR BOTTLE | D5: SCOTT 60 MIN | E5: 320657 | F5: 1 | G5: $1,500.00
A6: 7265 | B6: AIR BOTTLE | D6: SCOTT 60 MIN | E6: 320760 | F6: 1 | G6: $1,500.00
A7: 10324 | B7: AIR BOTTLE | D7: SCOTT 60 MIN | E7: 320659 | F7: 1 | G7: $1,500.00
A8: 7136 | B8: AIR BOTTLE | D8: SCOTT 45 MIN | E8: 320648 | F8: 1 | G8: $1,500.00
A9: 10319 | B9: AIR BOTTLE | D9: SCOTT 60 MIN | E9: 320753 | F9: 1 | G9: $1,500.00
A10: 10313 | B10: AIR BOTTLE | D10: SCOTT 60 MIN | E10: 362197 | F10: 1 | G10: $1,500.00
A11: 7128 | B11: AIR BOTTLE | D11: SCOTT 60 MIN | E11: 320641 | F11: 1 | G11: $1,500.00
A12: 7130 | B12: AIR BOTTLE | D12: SCOTT 60 MIN | E12: 249461 | F12: 1 | G12: $1,500.00
A13: 10314 | B13: AIR BOTTLE | D13: SCOTT 60 MIN | E13: 320554 | F13: 1 | G13: $1,500.00
A14: 10310 | B14: AIR BOTTLE | D14: SCOTT 60 MIN | E14: 320543 | F14: 1 | G14: $1,500.00
A15: 10327 | B15: AIR BOTTLE | D15: SCOTT 30 MIN | E15: 435624 | F15: 1 | G15: $900.00
A16: 10409 | B16: AIR BOTTLE | D16: SCOTT 30 MIN | E16: 359521 | F16: 1 | G16: $900.00
A17: 10759 | B17: AIR BOTTLE | D17: SCOTT 30 MIN | E17: 367322 | F17: 1 | G17: $900.00
A18: 10754 | B18: AIR BOTTLE | D18: SCOTT 30 MIN | E18: 349418 | F18: 1 | G18: $900.00
A19: 7766 | B19: AIR BOTTLE | D19: SCOTT 30 MIN | E19: 349401 | F19: 1 | G19: $900.00
A20: 7768 | B20: AIR BOTTLE | D20: SCOTT 30 MIN | E20: 371662 | F20: 1 | G20: $900.00
A21: 10331 | B21: AIR BOTTLE | D21: SCOTT 30 MIN | E21: 359660 | F21: 1 | G21: $900.00
A22: 10755 | B22: AIR BOTTLE | D22: SCOTT 30 MIN | E22: 350165 | F22: 1 | G22: $900.00
A23: 10758 | B23: AIR BOTTLE | D23: SCOTT 30 MIN | E23: 389009 | F23: 1 | G23: $900.00
A24: 10334 | B24: AIR BOTTLE | D24: SCOTT 30 MIN | E24: 349344 | F24: 1 | G24: $900.00
A25: 7817 | B25: AIR BOTTLE | D25: SCOTT 30 MIN | E25: 359676 | F25: 1 | G25: $900.00
A26: 10752 | B26: AIR BOTTLE | D26: SCOTT 30 MIN | E26: 359591 | F26: 1 | G26: $900.00
A27: 10323 | B27: AIR BOTTLE | D27: SCOTT 30 MIN | E27: 320759 | F27: 1 | G27: $900.00
A28: 10315 | B28: AIR BOTTLE | D28: SCOTT 60 MIN | E28: 320637 | F28: 1 | G28: $1,500.00
A29: 10320 | B29: AIR BOTTLE | D29: SCOTT 60 MIN | E29: 362216 | F29: 1 | G29: $1,500.00
A30: 10757 | B30: AIR BOTTLE | D30: SCOTT 30 MIN | E30: 389036 | F30: 1 | G30: $900.00
A31: 7810 | B31: AIR BOTTLE | D31: SCOTT 30 MIN | E31: 367277 | F31: 1 | G31: $900.00
A32: 10321 | B32: AIR BOTTLE | D32: SCOTT 30 MIN | E32: 320466 | F32: 1 | G32: $1,500.00
A33: 10322 | B33: AIR BOTTLE | D33: SCOTT 30 MIN | E33: 362198 | F33: 1 | G33: $900.00
B34: FOAM EDUCTOR 95 GPM | C34: OES-HQ | D34: TASK FORCE TIPS | E34: U475013 | F34: 1 | G34: $500.00
B35: 6 WAY GARDEN HOSE MANIFOLD | C35: HZMT1 | D35: MITI MANUFAC | E35: MANIFOLD | F35: 1 | G35: $548.00
B36: LOW LEVEL STRAINER 5" STORZ | C36: HZMT1 | D36: KOCHEK | F36: 1 | G36: $394.00
B37: LOW LEVEL STRAINER 5% NST | C37: HZMT1 | D37: KOCHEK | F37: 1 | G37: $394.00
B38: BLITZ AUTOMATIC NOZZLE | D38: TASK FORCE TIPS | E38: X509147 | F38: 1 | G38: $3,800.00
B39: PLAYPIPE COMBO NOZZLE | C39: HZMT1 | D39: TASK FORCE TIPS | E39: H537974 | F39: 1 | G39: $1,300.00
A40: 10729 | B40: PIERCING NOZZLE | C40: HZMT1 | D40: KOCHEK | F40: 1 | G40: $880.00
A41: 10846 | B41: SMOOTH BOR NOZZLE 2.5" COUPLING | C41: HZMT1 | D41: TASK FORCE TIPS | F41: 1 | G41: $400.00
A42: 10845 | B42: COMBO NOZZLE | C42: HZMT1 | D42: ELKHEART | F42: 1 | G42: $550.00
A43: 10859/10860 | B43: HYDRANT FLOW TESTER & DIFFUSER | D43: HYDRANT PRO | F43: 1 | G43: $500.00
A44: 10841 | B44: LADDER, 24' EXTENSION | C44: HZMT1 | D44: ALCO-LITE | E44: 204042 | F44: 1 | G44: $700.00
A45: 10837 | B45: LEVEL A PRESSURE TESTING KIT | C45: OES GARAGE | D45: KAPPLER | E45: 000261204 | F45: 1 | G45: $2,400.00
B46: LEVEL A SUITS | C46: OES GARAGE | D46: KAPPLER | E46: 345536 | F46: 1 | G46: $1,000.00
B47: LEVEL A SUITS | C47: OES GARAGE | D47: KAPPLER | E47: 411468 | F47: 1 | G47: $1,000.00
B48: LEVEL A SUITS | C48: OES GARAGE | D48: KAPPLER | E48: 411457 | F48: 1 | G48: $1,000.00
B49: LEVEL A SUITS | C49: HZMT1 | D49: KAPPLER | E49: 345530 | F49: 1 | G49: $1,000.00
B50: LEVEL A SUITS | C50: HZMT1 | D50: KAPPLER | E50: 344431 | F50: 1 | G50: $1,000.00
B51: LEVEL A SUITS | C51: HZMT1 | D51: KAPPLER | E51: 343150 | F51: 1 | G51: $1,000.00
B52: LEVEL A SUITS | C52: HZMT1 | D52: KAPPLER | E52: 344434 | F52: 1 | G52: $1,000.00
B53: LEVEL A SUITS | C53: HZMT1 | D53: KAPPLER | E53: 344433 | F53: 1 | G53: $1,000.00
B54: LEVEL A SUITS | C54: OES GARAGE | D54: KAPPLER | E54: 344429 | F54: 1 | G54: $1,000.00
B55: LEVEL A SUITS | C55: OES GARAGE | D55: KAPPLER | E55: 345533 | F55: 1 | G55: $1,000.00
B56: LEVEL A SUITS | C56: OES GARAGE | D56: KAPPLER | E56: 411462 | F56: 1 | G56: $1,000.00
B57: LEVEL A SUITS | C57: OES GARAGE | D57: KAPPLER | E57: 344432 | F57: 1 | G57: $1,000.00
B58: LEVEL A SUITS | C58: OES GARAGE | D58: KAPPLER | E58: 411458 | F58: 1 | G58: $1,000.00
B59: LEVEL A SUITS | C59: OES GARAGE | D59: KAPPLER | E59: 411465 | F59: 1 | G59: $1,000.00
B60: LEVEL A SUITS | C60: OES GARAGE | D60: KAPPLER | E60: 411456 | F60: 1 | G60: $1,000.00
B61: PRESSURE CAR CAPING KIT | C61: OES GARAGE | D61: MIDLAND MFG | E61: 240-201-PL | F61: 1 | G61: $8,000.00
A62: 10722 | B62: MOBILE RADIO | C62: OES-HQ | D62: MOTOROLA | E62: 775CKT0409 | F62: 1 | G62: $3,500.00
A63: 7280 | B63: MOBILE RADIO | C63: ESU2 | D63: MOTOROLA | E63: 514CKF4134 | F63: 1 | G63: $3,500.00
A64: 7181 | B64: MOBILE RADIO | C64: HZMT1 | D64: MOTOROLA | E64: 514CKF4133 | F64: 1 | G64: $3,500.00
B65: RESCUE RANDY | F65: 1 | G65: $1,300.00
A66: 10229 | B66: GENERATOR, 6500 WATT | C66: GARAGE | D66: GENERAC-0059413 | E66: 9440165A | F66: 1 | G66: $750.00
B67: GENERATOR, 2000 WATT | C67: GARAGE | D67: GENERAC-0067190 | E67: 9499257C | F67: 1 | G67: $450.00
B68: GENERATOR, 12500 WATT | C68: GARAGE | D68: GENERAC-0044510 | E68: 3700959 | F68: 1 | G68: $2,300.00
B69: MULTIRAE LITE | D69: PGM6208 | E69: MC-1BA3D659 | G69: $1,000.00
B70: RADIATION MONITOR | D70: CANBERRA RAD | E70: 0602-175 | G70: $12,000.00
B71: RADIATION MONITOR | D71: CANBERRA RAD | E71: 0602-174 | G71: $12,000.00
A72: 7224 | B72: 4' PIKE POLE D-HANDLE | D72: LEATHER HEAD | E72: N/A | G72: $300.00
A73: 7225 | B73: 4' PIKE POLE D-HANDLE | D73: LEATHER HEAD | E73: PP04D | G73: $300.00
A74: 10843 | B74: 4' PIKE POLE D-HANDLE | D74: FLAMEFIGHTER | E74: N/A | G74: $300.00
A75: 7285 | B75: FIRE HOSE TESTER | D75: PUMPTEC | E75: W1206-251-001 | G75: $2,800.00
A76: 7446 | B76: XTS 1500 | D76: MOTOROLA | E76: 687CNV2138 | G76: $1,600.00
A77: 7447 | B77: XTS 1500 | D77: MOTOROLA | E77: 687CNV2139 | G77: $1,600.00
A78: 10377 | B78: PORTABLE RADIO | D78: MOTOROLA | E78: 205CLF4553 | G78: $2,500.00
A79: 7418 | B79: PORTABLE RADIO | D79: MOTOROLA | E79: 687CKT1727 | G79: $1,500.00
A80: 7419 | B80: PORTABLE RADIO | D80: MOTOROLA | E80: 687CKT1729 | G80: $1,500.00
A81: 9160 | B81: PORTABLE RADIO | D81: MOTOROLA | E81: 205CKF4737 | G81: $1,500.00
A82: 7416 | B82: PORTABLE RADIO | D82: MOTOROLA | E82: 687CKT1736 | G82: $1,500.00
A83: 7417 | B83: PORTABLE RADIO | D83: MOTOROLA | E83: 687CKT1737 | G83: $1,500.00
A84: 7376 | B84: PORTABLE RADIO | D84: MOTOROLA | E84: 205CJR2202 | G84: $2,500.00
A85: 7412 | B85: PORTABLE RADIO | D85: MOTOROLA | E85: 205CLF4550 | G85: $2,500.00
A86: 7753 | B86: PORTABLE SCENE LIGHT | D86: STEAMLIGHT | E86: 013456 | G86: $550.00
B87: K-12 RESCUE SAW | D87: SHINDAIWA | E87: 505932 | G87: $1,800.00
B88: SCBA MASK | D88: SCOTT | G88: $400.00
B89: SCBA MASK | D89: SCOTT | G89: $400.00
B90: SCBA MASK | D90: SCOTT | G90: $400.00
B91: SCBA MASK | D91: SCOTT | G91: $400.00
B92: AIR PACK FRAME | D92: SCOTT | E92: 11551007002510 | G92: $4,500.00
B93: SCBA MASK | D93: SCOTT | G93: $400.00
B94: SCBA MASK | D94: SCOTT | G94: $400.00
B95: SCBA MASK | D95: SCOTT | G95: $400.00
B96: SCBA MASK | D96: SCOTT | G96: $400.00
B97: SCBA MASK | D97: SCOTT | G97: $400.00
B98: SCBA MASK | D98: SCOTT | G98: $400.00
B99: SCBA MASK | D99: SCOTT | G99: $400.00
B100: SCBA MASK | D100: SCOTT | G100: $400.00
B101: SCBA MASK | D101: SCOTT | G101: $400.00
B102: SCBA MASK | D102: SCOTT | E102: 22 | G102: $400.00
B103: SCBA MASK | D103: SCOTT | E103: 21 | G103: $400.00
B104: SCBA MASK | D104: SCOTT | E104: 20 | G104: $400.00
B105: TOOL BOX | D105: KOBALT | G105: $250.00
B106: HI-MASS SMOKER | D106: JEM | E106: 216057301006 | G106: $1,000.00
B107: POWERMOON AREA LIGHTING | D107: TRILEC | G107: $4,000.00
B108: POWERMOON AREA LIGHTING | D108: TRILEC | G108: $4,000.00
A109: 10745 | B109: HOLMATRO RESCUE TOOL 20" | C109: SPREADER | D109: GSP5240CL | E109: 00010009HV | G109: $7,600.00
B110: HOLMATRO RESCUE TOOL 28" | C110: SPREADER | D110: GSP5250 | E110: 00009563HV | G110: $7,800.00
B111: HOLMATRO RESCUE TOOL 41" | C111: RAM | D111: GRA4331 | E111: GRA00057 | G111: $6,100.00
B112: HOLMATRO RESCUE ANGLE CUT | C112: CUTTER | D112: GCV5050I | E112: 0000967HV | G112: $7,600.00
A113: 10746 | B113: HOLMATRO RESCUE CUTTER | C113: CUTTER | D113: GCV4035NCT11 | E113: GCV00052 | G113: $6,100.00
A114: 3846 | B114: PORTABLE RADIO | C114: MOTOROLA | D114: APX 6000 | E114: 481CRZ1164 | G114: $3,500.00
A115: 3847 | B115: PORTABLE RADIO | C115: MOTOROLA | D115: APX 6000 | E115: 481CRZ7994 | G115: $3,500.00
B116: RADIO | C116: SOUTH STATION | D116: APX 8500 | E116: 681CWH0439 | F116: 1 | G116: $3,334.40
B117: RADIO PARTS | C117: SOUTH STATION | D117: APX 8500 | E117: ATTACHMENTS | G117: $4,028.00
A118: 7258 | B118: HARNESS | C118: HZMT TRLR | D118: SCOTT SCBA | E118: 115S1007002647 | F118: 1 | G118: $2,900.00
B119: HARNESS | C119: HZMT TRLR | D119: SCOTT SCBA | E119: 115S1245006466 | F119: 1 | G119: $2,900.00
B120: HARNESS | C120: HZMT TRLR | D120: SCOTT SCBA | E120: 115S1251009441 | F120: 1 | G120: $2,900.00
B121: HARNESS | C121: HZMT TRLR | D121: SCOTT SCBA | E121: 115S1245001863 | F121: 1 | G121: $2,900.00
B122: HARNESS | C122: HZMT TRLR | D122: SCOTT SCBA | E122: 115S1251008192 | F122: 1 | G122: $2,900.00
B123: HARNESS | C123: HZMT TRLR | D123: SCOTT SCBA | E123: 115S1007002510 | F123: 1 | G123: $2,900.00
B124: HARNESS | C124: HZMT TRLR | D124: SCOTT SCBA | E124: 115S1251008243 | F124: 1 | G124: $2,900.00
B125: HARNESS | C125: HZMT TRLR | D125: SCOTT SCBA | E125: 115S1251008226 | F125: 1 | G125: $2,900.00
B126: HARNESS | C126: HZMT TRLR | D126: SCOTT SCBA | E126: 115S1245001867 | F126: 1 | G126: $2,900.00
B127: HARNESS | C127: HZMT TRLR | D127: SCOTT SCBA | E127: 115S1250016716 | F127: 1 | G127: $2,900.00
A128: 10161 | B128: HARNESS | C128: HZMT 1 | D128: SCOTT SCBA | E128: 115S1845004996 | F128: 1 | G128: $2,900.00
A129: 10162 | B129: HARNESS | C129: HZMT 1 | D129: SCOTT SCBA | E129: 115S1845004611 | F129: 1 | G129: $2,900.00
A130: 10160 | B130: HARNESS | C130: HZMT 2 | D130: SCOTT SCBA | F130: 1 | G130: $2,900.00
A131: 10164 | B131: HARNESS | C131: HZMT 2 | D131: SCOTT SCBA | F131: 1 | G131: $2,900.00
A132: 10166 | B132: HARNESS | C132: HZMT 2 | D132: SCOTT SCBA | F132: 1 | G132: $2,900.00
A133: 10167 | B133: HARNESS | C133: HZMT | D133: SCOTT SCBA | E133: 115S1845003895 | F133: 1 | G133: $2,900.00
A134: 10165 | B134: HARNESS | C134: HZMT | D134: SCOTT SCBA | E134: 115S1845003893 | F134: 1
B135: THERMAL CAMERAS | F135: 2 | G135: $13,800.00
B136: PORTABLE DECON SHOWER | F136: 1 | G136: $8,000.00
B137: LEVEL A SUITS | G137: $9,000.00
B138: HAZCAT KIT | F138: 1 | G138: $6,000.00
B139: MULTI GAS MONITOR | F139: 2 | G139: $1,250.00
A140: 7163 | B140: 2.5" GATED VALVE | F140: 1 | G140: $480.00
A141: 7167 | B141: 2.5" GATED Y | F141: 1 | G141: $420.00
A142: 7445 | B142: MOTOROLA RADIO | C142: RADIO ROOM | D142: MOTOROLA | E142: XTL-1500 | G142: $1,600.00
A143: 7444 | B143: MOTOROLA RADIO | C143: RADIO ROOM | D143: MOTOROLA | E143: XTL-2500 | G143: $2,600.00
A144: 7443 | B144: MOTOROLA RADIO | C144: RADIO ROOM | D144: MOTOROLA | E144: XTL-2500 | G144: $2,600.00
A145: 7964 | B145: MOTOROLA RADIO | C145: RADIO ROOM | D145: MOTOROLA | E145: CDM 1550LS | G145: $875.00
A146: 7965 | B146: MOTOROLA RADIO | C146: RADIO ROOM | D146: MOTOROLA | E146: CDM 1550LS | G146: $875.00
A147: 7966 | B147: KENWOOD RADIO | C147: RADIO ROOM | D147: KENWOOD | E147: TS-2000 | G147: $2,000.00
A148: 7967 | B148: KENWOOD RADIO | C148: RADIO ROOM | D148: KENWOOD | G148: $2,000.00
A149: 7968 | B149: PACTOR CONTROLLER | C149: RADIO ROOM | D149: SCS PTC-11PRO | E149: SCS PTC11PRO | G149: $2,000.00
A150: 7969 | B150: KENWOOD RADIO | C150: RADIO ROOM | D150: KENWOOD | E150: SD-23 | G150: $2,000.00
A151: 7461 | B151: MOTOROLA RADIO | C151: RADIO ROOM | D151: MOTOROLA | E151: XTL-1500 | G151: $1,600.00
A152: 5563 | B152: CHARGING STATION | C152: RADIO ROOM | D152: MOTOROLA V3.40 | F152: 2 | G152: $700.00
A153: 5564 | B153: CHARGING STATION | C153: RADIO ROOM | D153: MOTOROLA IMPRESS | F153: 2 | G153: $700.00
A154: 7982 | B154: BOGEN TONE SYSTEM CTRL | C154: RADIO ROOM | D154: BOGEN GS3 100 | G154: $1,000.00
F155: TOTAL | G155: =SUM(G4:G154) -> $310,928.40

Sheet Schools
A1: Roane County Government - Inland Marine
A2: Department: Schools
A3: Tag # | B3: Item | C3: Location | D3: Year | E3: Brand/Model | F3: Model | G3: Serial # | H3: Qty | I3: PO # | J3: Cost
B4: MOWER | C4: HARRIMAN HIGH (FOOTBALL) | E4: LEXMARK | H4: 1 | J4: $7,000.00
B5: MOWER | C5: HARRIMAN HIGH (FOOTBALL) | E5: LEXMARK | H5: 1 | J5: $1,000.00
B6: TRAILER (BAND) | C6: HARRIMAN HIGH | E6: 18FT. TRAILER | H6: 1 | J6: $5,000.00
B7: TRAILER (FOOTBALL) | C7: HARRIMAN HIGH | E7: 12FT. TRAILER | H7: 1 | J7: $2,000.00
B8: GOLF CART | C8: HHS. AG SHOP | E8: YAMAHA | G8: JR6-125449 | H8: 1 | J8: $6,000.00
B9: LAWN MOWER | C9: HHS. CANOPY | E9: FERRIS | F9: 3896 | G9: 27196 | H9: 1 | J9: $14,000.00
B10: LAWN MOWER | C10: HHS. CANOPY | E10: BADBOY | F10: 6000 | G10: BBP6030K0050823gg | H10: 1 | J10: $5,000.00
B11: TRAILER | C11: MIDWAY HIGH | G11: 1C9UM1218XJ716385 | H11: 1 | J11: $2,500.00
B12: BAND TRAILER | C12: OUTSIDE BANDROOM | E12: DIAMOND CARGO | G12: 53NBE1622H1047842 | H12: 1 | J12: $5,000.00
B13: MOWER | C13: ROANE COUNTY HIGH | E13: JOHN DEERE | G13: X495 | H13: 1 | J13: $8,500.00
B14: TRAILER | C14: ROANE COUNTY HIGH | E14: 5920 | G14: 4FGL0282XYD029597 | H14: 1 | J14: $10,914.47
B15: JOHN DEERE 2653 | C15: ROCKWOOD HIGH | G15: MO2653HO40690 | H15: 1 | J15: $3,000.00
B16: MOWER | C16: ROCKWOOD HIGH | E16: JOHN DEERE | F16: 455 | G16: 162 | H16: 1 | J16: $4,900.00
B17: MOWER | C17: ROCKWOOD HIGH | E17: JOHN DEERE | F17: 455 | H17: 1 | J17: $4,900.00
B18: SWEEPER | C18: ROCKWOOD HIGH | H18: 1 | J18: $400.00
B19: TURF SPECIAL | C19: ROCKWOOD HIGH | E19: KUBOTA | H19: 1 | J19: $9,500.00
B20: TRACTOR | C20: ROCKWOOD HIGH | E20: JOHN DEERE | G20: CH3029DO87811 | H20: 1 | J20: $8,500.00
B21: MOWER | C21: OLIVER SPRINGS HIGH | E21: TORO 3100D REELMASTER | G21: 03200-250000201 | H21: 1 | J21: $21,750.00
B22: TRAILER | C22: OLIVER SPRINGS HIGH | E22: HUSTLER 98 | G22: 5HABA1211W004257 | H22: 1 | J22: $500.00
B23: UTILITY VEHICLE | C23: OLIVER SPRINGS HIGH | E23: JOHN DEERE GATOR | G23: W04X2SD017100 | H23: 1 | J23: $4,999.99
B24: BAND TRAILER | C24: OLIVER SPRINGS HIGH | D24: 2013 | E24: CARU/CW8 | G24: 53FBE2425DF010656 | H24: 1 | J24: $5,562.00
I28: TOTAL | J28: =SUM(J4:J24) -> $130,926.46

Sheet Park
A1: Roane County Government - Inland Marine
A2: Department: Park
A3: Tag # | B3: Item | C3: Brand/Model | D3: Model | E3: Serial # | F3: Qty | G3: PO # | H3: Cost
A4: 9184 | B4: AIR COMPRESSOR | C4: KOBALT/6HP | E4: 1959585 | F4: 1 | H4: $400.00
A5: 3827 | B5: CHAIN SAW | C5: STIHL/25 | E5: 41948109 | F5: 1 | H5: $250.00
A6: 3828 | B6: CHAIN SAW | C6: STIHL/034AV | F6: 1 | H6: $300.00
A8: 3804 | B8: MOWER | C8: BUSHHOG/ATH720 | E8: 50012615 | F8: 1 | H8: $560.00
A9: 6023 | B9: MOWER | C9: GRASSHOPPER/928D | E9: 497009 | F9: 1 | H9: $10,000.00
A10: 3811 | B10: POST HOLE DIGGER | C10: SPEECO/70 | E10: HD26 | F10: 1 | G10: 101-50063 | H10: $600.00
A11: 3801 | B11: TRACTOR | C11: FORD | E11: BD41815 | F11: 1 | H11: $15,000.00
A12: 7924 | B12: WEED EATER | C12: SHINDAWA/T260 | E12: 33234 | F12: 1 | H12: $250.00
A13: 3803 | B13: WELDER/GENERATOR | C13: MILLER BLUESTAR/3500HN | E13: LC090529 | F13: 1 | H13: $750.00
A14: 5331 | B14: BLOWER | C14: STIHL | E14: 271673172 | H14: $350.00
A15: 10047 | B15: 82X 18 TRAILER | E15: 5JTAE1827FA00816 | H15: $3,689.00
A16: 6015 | B16: BLOWER | C16: STIHL | E16: 267251904 | H16: $350.00
A17: 3807 | B17: YARD BOX | F17: 1 | H17: $450.00
A18: 6023 | B18: MULE - ATV | C18: 2007 KAWASAKI 3010 | E18: VIN - JK1AFCE157B550356 | F18: 1 | H18: $6,200.00
B19: VS GENERAL TOOLBOX | C19: W/TOOLS | F19: 1 | H19: $1,000.00
A20: 6018 | B20: WEED EATER/PARTS ONLY | C20: T261X | E20: 6112433 | F20: 1 | H20: $250.00
A21: 3823 | B21: WEED EATER/PARTS ONLY | C21: T27 | E21: 5078595 | F21: 1 | H21: $250.00
A22: 6027 | B22: SKID STEER LOADER | C22: BOBCAT S220 | E22: A5GK35726 | F22: 1 | H22: $24,598.32
A23: 10040 | B23: PLOW | C23: BULL TONGUE | H23: $400.00
A24: 7931 | B24: BUCKET FOR BOBCAT | H24: $6,000.00
A25: 7926 | B25: TOOLS AND BOX | H25: $3,000.00
A26: 3829 | B26: 20 TON PRESS | E26: 69809 | H26: $600.00
A27: 7922 | B27: CHAIN SAW MS270 | C27: STIHL | H27: $300.00
A28: 7930 | B28: HYDRUALIC BUSHHOG | H28: $1,500.00
A29: 7921 | B29: GOLF CART | C29: CLUB CAR | E29: AG0141-081692 | F29: 1 | H29: $700.00
A30: 7927 | B30: PULVERIZOR | C30: 6' | H30: $600.00
A31: Roane County Government - Inland Marine
A32: Department: Park
A33: Tag # | B33: Item | C33: Brand/Model | D33: Model | E33: Serial # | F33: Qty | G33: PO # | H33: Cost
A34: 7928 | B34: BUCKET FOR BOBCAT | H34: $1,000.00
A35: 7929 | B35: BUCKET FOR BOBCAT | H35: $1,000.00
A36: 10039 | B36: FAN | C36: TEMPATURE
A37: 10006 | B37: TORO DEBRIS BLOWER | C37: PRO FORCE 27HP | E37: 316000135 | H37: $6,988.80
A38: 10007 | B38: TORO REEL MASTER | C38: USED 3100-D | E38: 03207-260000546 | H38: $14,500.00
A39: 10008 | B39: KIFCO WATER REEL | C39: NEW B140 | E39: 490817 | H39: $5,945.00
A40: 10045 | B40: HUSQVARNA BACKPACK BLOWER | C40: 580 BTS | E40: 41200519
A41: 10820 | B41: HUSQVARNA BLOWER | C41: 125B | E41: 20141305787 | H41: $250.00
A42: 6013 | B42: TROY BILT PRESSURE WASHER | C42: 13.0 HONDA | E42: 1011751767 | H42: $500.00
A43: 9091 | B43: CLEAN BURN OIL HEATER | E43: CB1750
A44: 10046 | B44: HUSQVARNA BACKPACK BLOWER | C44: 580BTS | E44: 40400271
A45: 7935 | B45: JOHN DEERE MOWER | C45: L110 | H45: $500.00
A46: 10024 | B46: EXMARK MOWER | C46: LAZER Z E SERIES | E46: 315656831 | H46: $10,000.00
A47: 10025 | B47: EXMARK MOWER | C47: LAZER Z E SERIES | E47: 315656536 | H47: $10,000.00
A48: 10005 | B48: BOBCAT FORKS | E48: 4710 | H48: $1,000.00
A49: 7932 | B49: BUSHHOG | C49: WOODS | E49: 982192 | H49: $1,800.00
A50: 10038 | B50: FAN | C50: COUNTRY LINE | H50: $350.00
A51: 10037 | B51: TABLE SAW | C51: DELTA | E51: K9907 | H51: $400.00
A52: 10033 | B52: TOP DRESSER | C52: TURF CO WIDE SP.P | E52: P00139 | H52: $8,000.00
A53: 10822 | B53: LEAF & LAWN VAC | C53: DR | E53: LLV28965 | H53: $1,000.00
A54: 3816 | B54: CHAIN SAW SHARPENER | C54: TECOMEC | E54: 72000 | H54: $350.00
A55: 3818 | B55: BENCH GRINDER | C55: CRAFTSMAN | E55: 91112001 | H55: $300.00
A56: 7920 | B56: WELDER | C56: HOBART | E56: MC101802-Y | H56: $400.00
B57: SHOP FAN | H57: $350.00
A58: 10020 | B58: MOWER JACK | C58: FISHER | H58: $250.00
A59: 10043 | B59: CUTTING TORCH W/1 OXYGEN BOTTLE & 1 ACCTYLENE BOTTLE | H59: $800.00
A60: Roane County Government - Inland Marine
A61: Department: Park
A62: Tag # | B62: Item | C62: Brand/Model | D62: Model | E62: Serial # | F62: Qty | G62: PO # | H62: Cost
A63: 10009 | B63: CHERRY PICKER | H63: $300.00
A64: 10041 | B64: BOSCH TRANSIT KIT | E64: 704001234 | H64: $500.00
A65: 10010 | B65: METAL CHOP SAW | C65: CHICAGO ELECTRICAL | E65: 5001571 | H65: $300.00
A66: 10011 | B66: 36 GALLON FUEL TANK | C66: BETTER BUILT | E66: AQ003647 | H66: $300.00
A67: 10012 | B67: 13GPM PUMP | C67: FILL RITE | E67: B31925269 | H67: $350.00
A68: 10026 | B68: MOWER | C68: SCAG | E68: M5001478 | H68: $10,000.00
A69: 10027 | B69: MOWER | C69: SCAG | E69: M5001355 | H69: $10,000.00
A70: 6029 | B70: ALUM. BOAT W/ MERCURY MOTOR AND TRAILER | E70: MAK78564M7 - HULL and ODO99723 - MOTOR | H70: $2,000.00
A71: 10031 | B71: HOPPER SPREADER | C71: TITAN | E71: 0353083-0047220 | H71: $500.00
A72: 10032 | B72: PRESSURE PUMP | C72: HONDA | E72: WH20XTAF | H72: $800.00
B73: MISCELLANEOUS TOOLS (DEWALT CORDLESS DRILLS, SAWZALL, FLASHLIGHTS, GRINDERS, ETC) | C73: MISC BRANDS | H73: $5,000.00
A74: 10029 | B74: 60 GAL BOOMLESS SPRAYER | H74: $500.00
A75: 100035 | B75: 25 GAL BOOMLESS SPRAYER | H75: $300.00
A76: 10036 | B76: 6.5X14 FT UTILITY TRAILER | C76: EA BRAND | E76: 5JTAU1411GA015913 | H76: $1,500.00
A77: 10013 | B77: POST HOLE DIGGER | C77: 2018 PREDITOR | E77: 44FAPL180602927 | H77: $300.00
A78: 10028 | B78: DEBRIS BLOWER | C78: TORO PRO FORCE | D78: CH740 | E78: 4816604461 | H78: $7,000.00
A79: 10014 | B79: STIHL POLE SAW | C79: HT103 | H79: $600.00
A80: 10015 | B80: CLUB CAR CARRY-ALL | E80: SZ1710-808504 | H80: $6,200.00
A81: 10002 | B81: ELECTRIC MITER SAW | C81: CHICAG0 | E81: 370331830 | H81: $300.00
A82: 10017 | B82: BADLAND WINCH | C82: 12,000 LB | H82: $400.00
A83: 10018 | B83: PULL BEHIND AREATOR | C83: DRUM STYLE | H83: $500.00
A84: 11100 | B84: CHAINSAW | C84: STIHL MS391 | F84: 1 | H84: $700.00
B85: STIHL TRIMMER | F85: 1 | H85: $400.00
A86: 11103 | B86: BLOWER | C86: SHIHL BG50 | F86: 1 | H86: $250.00
A87: 11104 | B87: BLOWER | C87: STHIHL BG 50 | F87: 1 | H87: $250.00
A88: 11105 | B88: BLOWER | C88: STIHL BG50 | F88: 1 | H88: $250.00
B89: STIHL WEEDEATERS | C89: FS91R/FS131R | F89: 2 | H89: $600.00
A90: 11107 | B90: WELDER | C90: EVERLAST | F90: 1 | H90: $500.00
B91: OPTICAL TRANSIT LEVEL | C91: NORTHWEST INSTRURM | E91: NSL 500B | F91: 1 | H91: $700.00
A94: Roane County Government - Inland Marine
A95: Department: Park
A96: Tag # | B96: Item | C96: Brand/Model | D96: Model | E96: Serial # | F96: Qty | G96: PO # | H96: Cost
A97: 10823 | B97: SUBMERSIBLE IRRIGATION PUMP (SPSC) | H97: $2,000.00
A98: 10034 | B98: PREDITOR TRASH PUMP | C98: 212CC GAS | H98: $300.00
A99: 10019 | B99: RANGER UTV | C99: POLARIS | E99: 3NSRCA576HG968846 | H99: $10,000.00
A100: 10030 | B100: RANGER UTV | C100: POLARIS | E100: 3NSRCA574GG523049 | H100: $8,932.00
A101: 10022 | B101: CATEPILLAR BACKHOE | C101: CATEPILLAR | D101: 416C | E101: 4ZN23889 | H101: $59,444.00
A102: 10001 | B102: TOOLS BOX/TOOLS | C102: CRAFTSMAN | H102: $800.00
A103: 10021 | B103: TRAILER | C103: HORSE | E103: DM5741RM71JA11517 | H103: $5,000.00
A104: 10827 | B104: HONDA GENERATOR | E104: 3500S | H104: $800.00
A105: 10828 | B105: MOWER GRASSHOPPER | C105: FOR PARTS ONLY | E105: 329
B106: CRAFTSMAN BOTTOM CHASER | F106: 1 | H106: $250.00
A107: 10890 | B107: BLOWER, STHIL | H107: $150.00
B108: AMANA HEAT/AC UNIT | C108: SHOP | F108: 1 | H108: $500.00
B109: FERTILIZER SPREADER | C109: SHOP | F109: 1 | H109: $950.00
B110: JENKINS STUMP GRINDER\BOBCAT | C110: SHOP | F110: 1 | H110: $5,900.00
B111: GOOGLE BUCKET FOR BOBCAT | C111: CIP | E111: 329429 | F111: 1 | H111: $4,000.00
F112: TOTAL | H112: =SUM(H4:H111) -> $294,357.12

Sheet WW
A1: Roane County Government-INLAND MARINE
A2: Department: WASTEWATER
A3: Tag # | B3: Item | C3: Brand/Model | D3: Serial # | E3: Qty | F3: PO # | G3: Cost
B4: BACKHOE | C4: JOHN DEERE/448 | E4: 1 | F4: 128-80007 | G4: $5,796.75
B5: GROOMING MOWER | C5: JOHN DEERE/272 | E5: 1 | F5: 128-70079 | G5: $1,986.70
B6: TRACTOR 4WD | C6: JOHN DEERE/4610 | D6: LV4610 H360699 | E6: 1 | F6: 128-70080 | G6: $22,389.26
B7: X LOADER W/ BUCKET | C7: JOHN DEERE 400X | E7: 1 | F7: 128-70080 | G7: $157.50
B8: MOWERS | C8: ARIENS | E8: 2 | G8: $14,000.00
B9: BACKHOE | C9: JOHN DEERE | D9: 3103J | E9: 1 | F9: 204-600062 | G9: $74,999.00
B10: SLUDGEBOX | C10: FLOW TREND | E10: 1 | G10: $4,500.00
B11: COMPACT TRACK LOADER | C11: CATERPILLAR | D11: GTC00487 | E11: 1 | F11: 204-900055 | G11: $70,000.00
B12: SLUDGEBOX | C12: FLOW TREND | E12: 1 | G12: $48,577.00
B13: HEAVY EQIP TRAILER | E13: 1 | G13: $7,400.00
B14: CAT MIN TRACTOR | E14: 1 | G14: $94,500.00
F18: TOTAL: | G18: =SUM(G4:G17) -> $344,306.21

Sheet Bldg & Grounds
A1: Roane County Government-INLAND MARINE
A2: Department: BUILDING & GROUNDS COURTHOUSE
A3: Tag # | B3: Item | C3: Brand/Model | D3: Serial # | E3: Qty | F3: PO # | G3: Cost
B4: MISC HAND TOOLS | C4: VARIOUS | G4: $2,000.00
B5: MISC POWER TOOLS | C5: VARIOUS | G5: $4,000.00
B6: POWER WASHER | C6: HONDA | E6: 1 | G6: $1,000.00
B7: TRAILER | E7: 1 | G7: $2,000.00
B8: RIDING MOWER | C8: JOHN DEERE 100 SERIES | E8: 1 | G8: $2,500.00
B9: PUSH MOWERS | E9: 3 | G9: $1,050.00
B10: BACK PACK LEAF BLOWER | E10: 1 | G10: $600.00
B11: WEED TRIMMERS | C11: ECHO | E11: 2 | G11: $400.00
B12: WEED TRIMMERS | C12: HUSQEVARNA | E12: 2 | G12: $400.00
B13: LEAF BLOWER | C13: ECHO | E13: 2 | G13: $600.00
A14: 7911 | B14: RIDING MOWER | C14: MAINTENANCE | D14: JOHN DEERE | F14: 1 | G14: $3,000.00
G17: =SUM(G4:G16) -> $17,550.00

Sheet HEALTH DEPT.
A1: Roane County Government - INLAND MARINE
A2: Department: Health Department
A3: Tag # | B3: Item | C3: Location | D3: Brand/Model | E3: Serial # | F3: Qty | G3: PO # | H3: Cost
B5: WEEDEATER | C5: MAINTENANCE | D5: SHINDAWA T230 | F5: 1 | H5: $475.00
B6: 10X10 STORAGE SHED | C6: OUTSIDE | D6: STATE-PURCHASED | F6: 1 | H6: $3,442.00
G22: TOTAL | H22: =SUM(H5:H9) -> $3,917.00

Sheet Values
A1: INLAND MARINE INVENTORY VALUES
A3: Department | B3: Total Value
A4: Building & Grounds | B4: ='Bldg & Grounds'!G17 -> 17,550.00
A5: Elections | B5: =Elections!K229 -> 655,989.00
A6: Sheriff | B6: =Sheriff!G60 -> 557,896.00
A7: OES | B7: =#REF! -> 
A8: Park | B8: =Park!H112 -> 294,357.12
A9: General Fund Total | B9: =SUM(B4:B8) -> 
A10: Ambulance | B10: =#REF! -> 
A11: Highway | B11: =Hwy!F96 -> 2,174,511.51
A12: Recycle | B12: =Rcy!H77 -> 1,648,785.05
A13: Waste Water | B13: =WW!G18 -> 344,306.21
A14: TOTAL | B14: =SUM(B9:B13) -> 
A16: Schools | B16: =Schools!J28 -> 130,926.46

Sheet Sheet5
A1: Roane County Government - Inland Marine
A2: Department: All Departments- ITEMS THAT NO ONE IS CLAIMING
A3: DEPT. | B3: Item | C3: Location | D3: Year | E3: Brand/Model | F3: Model | G3: Serial # | H3: Qty | I3: PO # | J3: Cost
A4: OLIVER SPRINGS HS. | B4: FORK LIFT | C4: MAINTENANCE | E4: HYSTER/H50XM | G4: H177B46916B | H4: 1 | I4: 141-80230 | J4: $18,104.00
A5: OLIVER SPRINGS HS. | B5: 4 WHEELER | C5: UPPER FIELD STORAGE | E5: ARCTIC CAT | G5: 4UF04ATV64124536 | H5: 1 | J5: $3,000.00
A6: OLIVER SPRINGS HS. | B6: 4 WHEELER | C6: UPPER FIELD STORAGE | E6: YAMAHA | F6: MOTO4 | H6: 1 | J6: $1,000.00
A7: HARRIMAN HIGH SCHOOL | B7: BUSHHOG 10" | C7: MAINTENANCE | H7: 1 | J7: $7,500.00

Sheet GOV DEAL
A1: ITEMS SOLD ON GOV DEALS
A2: DEPARTMENT | B2: ITEM | C2: MODEL | D2: SERIAL # | F2: PO #
A3: RECYCLING | B3: BALER, VERTICAL | C3: BACE MODEL V63 | D3: V631500803 | E3: 1 | F3: 123-200072
A4: RECYCLING | B4: CLARK FORKLIFT | C4: M-CGP30 | D4: P365G-0473-9462FB
A5: OES | B5: GAMMA PAGER | D5: THERMO FISHER/FH41PRDENER | E5: 1 | F5: $1,662.00
A6: OES | B6: GAMMA PAGER | D6: THERMO FISHER/FH41PRDENER | E6: 1 | F6: $1,662.00
A7: OES | B7: GAMMA PAGER | D7: THERMO FISHER/FH41PRDENER | E7: 1 | F7: $1,662.00
A8: OES | B8: GAMMA PAGER | D8: THERMO FISHER/FH41PRDENER | E8: 1 | F8: $1,662.00
A9: OES | B9: GAMMA PAGER | D9: THERMO FISHER/FH41PRDENER | E9: 1 | F9: $1,662.00
A10: OES | B10: GAMMA PAGER | D10: THERMO FISHER/FH41PRDENER | E10: 1 | F10: $1,662.00
A11: OES | B11: GAMMA PAGER | D11: THERMO FISHER/FH41PRDENER | E11: 1 | F11: $1,662.00
A12: OES | B12: GAMMA PAGER | D12: THERMO FISHER/FH41PRDENER | E12: 1 | F12: $1,662.00
A13: OES | B13: GAMMA PAGER | D13: THERMO FISHER/FH41PRDENER | E13: 1 | F13: $1,662.00
A14: OES | B14: GAMMA PAGER | D14: THERMO FISHER/FH41PRDENER | E14: 1 | F14: $1,662.00
A15: OES | B15: GAMMA PAGER | D15: THERMO FISHER/FH41PRDENER | E15: 1 | F15: $1,662.00
A16: OES | B16: GAMMA PAGER | D16: THERMO FISHER/FH41PRDENER | E16: 1 | F16: $1,662.00
A17: OES | B17: GAMMA PAGER | D17: THERMO FISHER/FH41PRDENER | E17: 1 | F17: $1,662.00
A18: OES | B18: GAMMA PAGER | D18: THERMO FISHER/FH41PRDENER | E18: 1 | F18: $1,662.00
A19: OES | B19: GAMMA PAGER | D19: THERMO FISHER/FH41PRDENER | E19: 1 | F19: $1,662.00
A20: OES | B20: GAMMA PAGER | D20: THERMO FISHER/FH41PRDENER | E20: 1 | F20: $1,662.00
A21: OES | B21: GAMMA PAGER | D21: THERMO FISHER/FH41PRDENER | E21: 1 | F21: $1,662.00
A22: OES | B22: GAMMA PAGER | D22: THERMO FISHER/FH41PRDENER | E22: 1 | F22: $1,662.00
A23: OES | B23: GAMMA PAGER | D23: THERMO FISHER/FH41PRDENER | E23: 1 | F23: $1,662.00
A24: OES | B24: PORTABLE RADIO | C24: MOTOROLA | D24: APX 4000 | E24: 426CRF7056 | F24: $3,500.00
A25: OES | B25: PORTABLE RADIO | C25: MOTOROLA | D25: APX 6000 | E25: 481CRX1310 | F25: $3,500.00
A26: OES | B26: PORTABLE RADIO | C26: MOTOROLA | D26: APX 6000 | E26: 481CRX1309 | F26: $3,500.00
A27: OES | B27: SEEK THERMAL CAMERA | E27: OB12CL1JULH54 | F27: $600.00
A28: OES | B28: SEEK THERMAL CAMERA | E28: 1616C1KYHR54 | F28: $600.00
A29: OES | B29: SEEK THERMAL CAMERA | E29: 160AC1KYHB74 | F29: $600.00
A30: OES | B30: SURVIVAIR SCBA | E30: 3 | F30: $15,000.00
A31: OES | B31: SCOTT SCBA | E31: 18 | F31: $63,000.00
A32: OES | B32: AIR BOTTLES | E32: 18 | F32: $2,700.00
A33: OES | B33: 2.5" BRASS NOZZLE | F33: 1 | G33: $663.00
A34: OES | B34: 2.5" MAX FORCE NOZZLE | F34: 1 | G34: $950.00
A35: OES | B35: 2.5" HANDLINE NOZZLE | F35: 1 | G35: $950.00
A36: OES | B36: SCBA BOTTLES | F36: 16 | G36: $24,000.00
A37: OES | B37: BLITE NOZZLE | F37: 1 | G37: $3,800.00
A38: OES 7460 | B38: MOTOROLA RADIO | C38: RADIO ROOM | D38: MOTOROLA XLT-1500 | G38: $1,600.00
A39: OES 7459 | B39: MOTOROLA RADIO | C39: RADIO ROOM | D39: MOTOROLA XLT-1500 | G39: $1,600.00
A40: OES | B40: MOTOROLA PORTABLE | C40: RADIO ROOM | D40: MOTOROLA 1500XLS | F40: 5 | G40: $8,000.00
A41: OES | B41: MOTOROLA PORTABLE | C41: RADIO ROOM | D41: MOTOROLA HT-1250 | F41: 3 | G41: $4,050.00
A42: OES | B42: MOTOROLA PORTABLE | C42: RADIO ROOM | D42: MOTOROLA XTS-1500 | F42: 12 | G42: $19,200.00
A43: OES | B43: MOTOROLA PORTABLE | C43: RADIO ROOM | D43: MOTOROLA HTI-1250 | F43: 8 | G43: $10,800.00
A44: OES | B44: MOTOROLA PORTABLE | C44: RADIO ROOM | D44: MOTOROLA XTS-1500 | G44: $1,600.00
A45: OES 7980 | B45: MOTOROLA RADIO | C45: RADIO ROOM | D45: MOTOROLA XTL-1500 | G45: $1,600.00
A46: OES | B46: MOTOROLA RADIO | C46: RADIO ROOM | D46: MOTOROLA CDM 1250 | F46: 3 | G46: $4,050.00
A47: OES | B47: MOTOROLA RADIO | C47: RADIO ROOM | D47: MOTOROLA CDM 1550 LS | F47: 4 | G47: $3,500.00
A48: OES 7991 | B48: MOTOROLA RADIO | C48: RADIO ROOM | D48: MOTOROLA CDM 1550 | G48: $875.00
A49: OES 5672 | B49: WYSE DEVICE (COMP) | C49: EOC | D49: WYSE | H49: $432.00
A50: 5674 | B50: WYSE DEVICE (COMP) | C50: EOC | D50: WYSE | H50: $432.00
A51: 5676 | B51: WYSE DEVICE (COMP) | C51: EOC | D51: WYSE | H51: $432.00
A52: 5678 | B52: WYSE DEVICE (COMP) | C52: EOC | D52: WYSE | H52: $432.00
A53: 5680 | B53: WYSE DEVICE (COMP) | C53: EOC | D53: WYSE | H53: $432.00
A54: 5682 | B54: WYSE DEVICE (COMP) | C54: EOC | D54: WYSE | H54: $432.00
A55: 5694 | B55: WYSE DEVICE (COMP) | C55: EOC | D55: WYSE | H55: $432.00
A56: 5695 | B56: WYSE DEVICE (COMP) | C56: EOC | D56: WYSE | H56: $432.00
A57: 5698 | B57: WYSE DEVICE (COMP) | C57: EOC | D57: WYSE | H57: $432.00
A58: 5699 | B58: WYSE DEVICE (COMP) | C58: EOC | D58: WYSE | H58: $432.00
A59: 5711 | B59: WYSE DEVICE (COMP) | C59: EOC | D59: WYSE | H59: $432.00
A60: 5713 | B60: WYSE DEVICE (COMP) | C60: EOC | D60: WYSE | H60: $432.00
A61: 5715 | B61: WYSE DEVICE (COMP) | C61: EOC | D61: WYSE | H61: $432.00
A62: 5717 | B62: WYSE DEVICE | C62: EOC | D62: WYSE | H62: $432.00
A63: 5719 | B63: WYSE DEVICE | C63: EOC | D63: WYSE | H63: $432.00
A64: 5721 | B64: WYSE DEVICE | C64: EOC | D64: WYSE | H64: $432.00
A65: 5723 | B65: WYSE DEVICE | C65: EOC | D65: WYSE | H65: $432.00
A66: 5725 | B66: WYSE DEVICE | C66: EOC | D66: WYSE | H66: $432.00
A67: 5727 | B67: WYSE DEVICE | C67: EOC | D67: WYSE | H67: $432.00
A68: 5729 | B68: WYSE DEVICE | C68: EOC | D68: WYSE | H68: $432.00
A69: 5733 | B69: WYSE DEVICE | C69: EOC | D69: WYSE | H69: $432.00
A70: 7956 | B70: WYSE DEVICE | C70: EOC | D70: WYSE | H70: $432.00
A71: 7957 | B71: WYSE DEVICE | C71: EOC | D71: WYSE | H71: $432.00
A72: 7958 | B72: WYSE DEVICE | C72: EOC | D72: WYSE | H72: $432.00
A73: 10321 | B73: AIR BOTTLE | D73: SCOTT 30 MIN | E73: 143767 | F73: 1 | G73: $900.00
A74: OES | B74: AIR BOTTLE | D74: SCOTT 30 MIN | E74: 150474 | F74: 1 | G74: $900.00
A75: OES | B75: ELECTRIC FAN | C75: TRL-3 | D75: SHAEFER | E75: 648HKFJE3846 | F75: 1 | G75: $600.00
A76: OES | B76: COMBO TOOL SPREADER/CUTTER | C76: ESU2 | D76: RESCUE TECH | E76: 85301 | F76: 1 | G76: $3,500.00
A77: OES | B77: RAM | C77: ESU2 | D77: RESCUE | E77: 884FM6H03 | F77: 1 | G77: $3,000.00
A78: OES | B78: GLASS SAW RESCUE TOOL | C78: HZMT1 | D78: GLASS MASTER | E78: 068146 | F78: 1 | G78: $400.00
A79: OES | B79: GLASS SAW RESCUE TOOL | C79: HZMT1 | D79: GLASS MASTER | E79: 068155 | F79: 1 | G79: $400.00
A80: OES | B80: GLASS SAW RESCUE TOOL | C80: HZMT1 | D80: GLASS MASTER | E80: 48680 | F80: 1 | G80: $400.00
A81: OES | B81: GLASS SAW RESCUE TOOL | C81: HZMT1 | D81: GLASS MASTER | E81: 068145 | F81: 1 | G81: $400.00
A82: OES | B82: 3-WAY MANIFORLD 5" INLET 3--2.5" OUTLETS | C82: HZMT1 | D82: TASK FORCE TIPS | E82: AL32T1 | F82: 1 | G82: $1,690.00
A83: OES | B83: HYDRANT GATE VALVE 2.5" | C83: HZMT1 | D83: TASK FORCE TIPS | E83: AC5ANJ-NJ | F83: 1 | G83: $450.00
A84: OES | B84: GATED WYE 2.5" INLET--2--1.5" OUTLETS | C84: HZMT1 | D84: TASK FORCE TIPS | E84: A523638 | F84: 1 | G84: $450.00
A85: OES | B85: GATED WYE 2.5" INLET--2--1.5" OUTLETS | C85: HZMT1 | D85: TASK FORCE TIPS | E85: A523638 | F85: 1 | G85: $450.00
A86: OES | B86: OUTLET GATED WYE 2--2.5" Inlets x 2.5" | C86: HZMT1 | D86: TASK FORCE TIPS | E86: 510562 | F86: 1 | G86: $1,375.00
A87: OES | B87: 6" NST-5" STORZ INTAKE VALVE | C87: HZMT1 | D87: TASK FORCE TIPS | E87: A535365 | F87: 1 | G87: $1,950.00
A88: OES | B88: 6" NST-5" STORZ INTAKE VALVE | C88: HZMT1 | D88: TASK FORCE TIPS | E88: A515403 | F88: 1 | G88: $1,950.00
A89: OES | B89: DISCHARGE ELBOW 3" | C89: HZMT1 | D89: POW HATAN | F89: 1 | G89: $425.00
A90: OES | B90: THUNDERFOG NOZZLE | C90: HZMT1 | D90: TASK FORCE TIPS | E90: F544626 | F90: 1 | G90: $950.00
A91: OES | B91: THUNDERFOG NOZZLE | C91: HZMT1 | D91: TASK FORCE TIPS | E91: F544660 | F91: 1 | G91: $950.00
A92: OES | B92: 1.5 NOZZLE | C92: HZMT1 | D92: TASK FORCE TIPS | F92: 1 | G92: $650.00
A93: OES | B93: HANDLINE NOZZLE | C93: HZMT1 | D93: TASK FORCE TIPS | E93: H552821 | F93: 1 | G93: $1,050.00
B94: MOBILE RADIO | C94: OES-HQ | D94: MOTOROLA | E94: 775CKT0414 | F94: 1 | G94: $2,000.00
B95: MOBILE RADIO | C95: OES-HQ | D95: MOTOROLA | E95: 775CKT0416 | F95: 1 | G95: $2,000.00
B96: MOBILE RADIO | C96: OES-HQ | D96: MOTOROLA | E96: 514CLF3857 | F96: 1 | G96: $3,500.00
B97: MOBILE RADIO | C97: OES-HQ | D97: MOTOROLA | E97: 514CLF3859 | F97: 1 | G97: $3,500.00
B98: MOBILE RADIO | C98: OES-HQ | D98: MOTOROLA | E98: 775CKT0410 | F98: 1 | G98: $3,500.00
B99: MOBILE RADIO | C99: 400 | D99: MOTOROLA | E99: 514CKF4127 | F99: 1 | G99: $3,500.00
B100: MOBILE VHF RADIO | C100: COM-1 | D100: KENWOOD | E100: 3071396 | F100: 1 | G100: $2,000.00
A101: OES | B101: MOBILE VHF RADIO | C101: OES-HQ | D101: MOTOROLA | E101: 103TEWS727 | F101: 1 | G101: $2,500.00
A102: OES | B102: MOBILE VHF RADIO | C102: OES-HQ | D102: MOTOROLA | E102: 001TDG1626 | F102: 1 | G102: $2,500.00
A103: OES | B103: GENERATOR, 17,500 WATT | D103: GENERAC-12500 | E103: 1441245 | F103: 1 | G103: $2,000.00
A104: OES | B104: MULTI GAS MONITOR | D104: BW | E104: SS314-003128 | G104: $1,800.00
A105: OES | B105: MULTI GAS MONITOR | D105: BW | E105: SK314-004391 | G105: $2,400.00
B106: 3' TNT TOOL | D106: TNT TOOLS INC | E106: 5315724 | G106: $220.00
B107: COMBINATION TOOL | D107: TNT TOOLS INC | E107: 5315724 | G107: $220.00
B108: EXTENDABLE MULTI TOOL | D108: PARATECH | E108: N/A | G108: $350.00
B109: EXTENDABLE MULTI TOOL | D109: PARATECH | E109: N/A | G109: $350.00
B110: TNT RESCUE TOOL | D110: TNT TOOLS INC | E110: N/A | G110: $214.95
B111: IPAD | E111: DMQN42AAFK11 | G111: $700.00
B112: REMOTE SPEAKER MICROPHONE | D112: MOTOROLA | G112: $200.00
B113: REMOTE SPEAKER MICROPHONE | D113: MOTOROLA | G113: $200.00
B114: REMOTE SPEAKER MICROPHONE | D114: MOTOROLA | G114: $200.00
B115: REMOTE SPEAKER MICROPHONE | D115: MOTOROLA | G115: $200.00
B116: REMOTE SPEAKER MICROPHONE | D116: MOTOROLA | G116: $200.00
B117: REMOTE SPEAKER MICROPHONE | D117: MOTOROLA | G117: $200.00
B118: REMOTE SPEAKER MICROPHONE | D118: MOTOROLA | G118: $200.00
B119: REMOTE SPEAKER MICROPHONE | D119: MOTOROLA | G119: $200.00
B120: REMOTE SPEAKER MICROPHONE | D120: MOTOROLA | G120: $200.00
B121: REMOTE SPEAKER MICROPHONE | D121: MOTOROLA | G121: $200.00
B122: REMOTE SPEAKER MICROPHONE | D122: MOTOROLA | G122: $200.00
B123: REMOTE SPEAKER MICROPHONE | D123: MOTOROLA | G123: $200.00
B124: XTS 1500 | D124: MOTOROLA | E124: 687CNV2140 | G124: $1,600.00
B125: PORTABLE RADIO | D125: MOTOROLA | E125: 205CLF4552 | G125: $2,500.00
B126: PORTABLE RADIO | D126: MOTOROLA | E126: 687CKT1732 | G126: $1,500.00
A127: OES | B127: PORTABLE RADIO | D127: MOTOROLA | E127: 205CJR2203 | G127: $2,500.00
A128: OES | B128: DECENDING RESCUE HARNESS | D128: CMC RESCUE INC | G128: $250.00
A129: OES | B129: DECENDING RESCUE HARNESS | D129: CMC RESCUE INC | G129: $250.00
A130: OES | B130: 300' NYLON RESCUE ROPE | D130: STERLING | G130: $320.00
A131: OES | B131: 300' NYLON RESCUE ROPE | D131: STERLING | G131: $320.00
B132: SCBA FRAME | D132: SCOTT | E132: 115C1245004139 | G132: $3,500.00
B133: SCBA PASS BUILT IN | D133: SCOTT | E133: 115S1245000328 | G133: $3,500.00
B134: AIR PACK FRAME | D134: SCOTT | E134: 200275-01 | G134: $4,500.00
B135: AIR PACK FRAME | D135: SCOTT | E135: 0507034924AA | G135: $4,500.00
B136: AIR PACK FRAME | D136: SCOTT | E136: 0507034972 | G136: $4,500.00
B137: AIR PACK FRAME | D137: SCOTT | E137: 0507034967 | G137: $4,500.00
B138: AIR PACK FRAME | D138: SCOTT | E138: 0507034793AA | G138: $4,500.00
B139: AIR PACK FRAME | D139: SCOTT | E139: 0506033477AA | G139: $4,500.00
B140: AIR PACK FRAME | D140: SCOTT | E140: 200438-01 | G140: $4,500.00
B141: AIR PACK FRAME | D141: SCOTT | E141: RED0507034990 | G141: $4,500.00
B142: AIR PACK FRAME | D142: SCOTT | E142: 0506033479AA | G142: $4,500.00
B143: AIR PACK FRAME | D143: SCOTT | E143: 0507034913AA | G143: $4,500.00
A144: OES | B144: AIR PACK FRAME | D144: SCOTT | E144: 11551250011034 | G144: $4,500.00
B145: AIR PACK FRAME | D145: SCOTT | E145: 11551250016598 | G145: $4,500.00
B146: AIR PACK FRAME | D146: SCOTT | E146: 115512500110443 | G146: $4,500.00
B147: AIR PACK FRAME | D147: SCOTT | E147: 11551250011295 | G147: $4,500.00
B148: AIR PACK FRAME | D148: SCOTT | E148: 11551250011291 | G148: $4,500.00
B149: AIR PACK FRAME | D149: SCOTT | E149: 1155125011288 | G149: $4,500.00
A150: OES | B150: THERMAL IMAGING CAMERA | D150: ISG | E150: 5776 | G150: $16,000.00
B151: TURNOUT COAT | D151: FRYEPEL | E151: C2008845 | G151: $650.00
B152: TURNOUT COAT | D152: FRYEPEL | E152: C2008680 | G152: $1,000.00
B153: TURNOUT COAT | D153: FRYEPEL | E153: C2008835 | G153: $1,000.00
B154: STREAM LIGHT | E154: 013456

Sheet Sheet3
